Workbook

Sheet Start (hidden)
B4: Das Makro ist momentan nicht aktiviert
B5: Bitte Aktivieren Sie das Makro
B6: Ohne Makro funktioniert diese Datei nicht
B8: roland.schnurr@sixsigmablackbelt.de
B10: https://www.sixsigmablackbelt.de

Sheet Eingabe und Diagramm
N2: =translation!C1 -> Prozess- und Maschinenfähigkeit | AB2: Choose your language Wählen Sie Ihre Sprache
B4: i | C4: xi | E4: i | F4: xi | H4: i | I4: xi | K4: i | L4: xi | N4: =translation!D1 -> Werte können geändert werden
B5: 1 | C5: 20 | E5: 51 | F5: 18.8 | H5: 101 | I5: 16.9 | K5: 151 | N5: =translation!E1 -> Werte werden berechnet (Blatt Berechnung)
B6: 2 | C6: 21 | E6: 52 | F6: 17.1 | H6: 102 | I6: 19.5 | K6: 152
B7: 3 | C7: 21.5 | E7: 53 | F7: 18.6 | H7: 103 | I7: 20.4 | K7: 153 | N7: =translation!F1 -> Artikel: | O7: Halter
B8: 4 | C8: 19 | E8: 54 | F8: 18 | H8: 104 | I8: 19.1 | K8: 154 | N8: =translation!G1 -> Nummer: | O8: C2G234824ß
B9: 5 | C9: 19 | E9: 55 | F9: 18.7 | H9: 105 | K9: 155 | N9: =translation!H1 -> Zeichnung: | O9: UZT1340124357
B10: 6 | C10: 20.4 | E10: 56 | F10: 20.3 | H10: 106 | K10: 156 | N10: =translation!I1 -> Prüfer: | O10: Maier
B11: 7 | C11: 18.3 | E11: 57 | F11: 18.7 | H11: 107 | K11: 157 | N11: =translation!J1 -> Messmittel: | O11: Waage 47.22452
B12: 8 | C12: 19.9 | E12: 58 | F12: 18.8 | H12: 108 | K12: 158 | N12: =translation!K1 -> Datum: | O12: 2014-12-10
B13: 9 | C13: 18.7 | E13: 59 | F13: 19.4 | H13: 109 | K13: 159 | N13: =translation!L1 -> Merkmal: | O13: Länge
B14: 10 | C14: 18 | E14: 60 | F14: 18.5 | H14: 110 | K14: 160 | N14: =translation!M1 -> Maßeinheit: | O14: mm
B15: 11 | C15: 17.7 | E15: 61 | F15: 18.6 | H15: 111 | K15: 161 | N15: =translation!N1 -> Sollwert msoll = | P15: 19
B16: 12 | C16: 19.1 | E16: 62 | F16: 19.6 | H16: 112 | K16: 162 | N16: =translation!O1 -> Unterer Grenzwert UGW = | P16: 16
B17: 13 | C17: 19.7 | E17: 63 | F17: 18.5 | H17: 113 | K17: 163 | N17: =translation!P1 -> Oberer Grenzwert OGW = | P17: 23
B18: 14 | C18: 18.1 | E18: 64 | F18: 20 | H18: 114 | K18: 164 | N18: =translation!Q1 -> Anzahl Klassen Histogramm = | P18: 12
B19: 15 | C19: 18.4 | E19: 65 | F19: 17.8 | H19: 115 | K19: 165 | N19: =translation!R1 -> Cpk< | O19: 1.33 | P19: =translation!V1 -> Prozess nicht fähig
B20: 16 | C20: 17.5 | E20: 66 | F20: 19.8 | H20: 116 | K20: 166 | N20: =translation!S1 -> Cpk | O20: =translation!U1 -> dazwischen | P20: =translation!W1 -> Prozess bedingt fähig
B21: 17 | C21: 18.9 | E21: 67 | F21: 16.6 | H21: 117 | K21: 167 | N21: =translation!T1 -> Cpk> | O21: 1.66 | P21: =translation!X1 -> Prozess fähig
B22: 18 | C22: 19 | E22: 68 | F22: 19.4 | H22: 118 | K22: 168
B23: 19 | C23: 20.5 | E23: 69 | F23: 19.3 | H23: 119 | K23: 169 | N23: =translation!Y1 -> Stichprobenumfang | P23: =Anzahl -> 104
B24: 20 | C24: 17.3 | E24: 70 | F24: 20.1 | H24: 120 | K24: 170 | N24: =translation!Z1 -> Mittelwert | P24: =Mittelwert -> 18.87115385
B25: 21 | C25: 18.3 | E25: 71 | F25: 20.5 | H25: 121 | K25: 171 | N25: =translation!AA1 -> Standardabweichung | P25: =Standardabweichung -> 1.179079209
B26: 22 | C26: 18.4 | E26: 72 | F26: 20 | H26: 122 | K26: 172 | N26: =translation!AB1 -> Die Werte sind nach Andersson Darling Test | P26: =IF(Berechnung!BO8<0.05,translation!AD1,translation!AC1) -> normalverteilt
B27: 23 | C27: 18.6 | E27: 73 | F27: 20.8 | H27: 123 | K27: 173
B28: 24 | C28: 19.8 | E28: 74 | F28: 17.7 | H28: 124 | K28: 174
B29: 25 | C29: 20.2 | E29: 75 | F29: 18.9 | H29: 125 | K29: 175
B30: 26 | C30: 18.5 | E30: 76 | F30: 18.8 | H30: 126 | K30: 176 | N30: =translation!AP1 -> Fähigkeits- kennwerte | O30: =translation!AL1 -> Cmu | P30: =CMU -> 0.8116937984
B31: 27 | C31: 18.5 | E31: 77 | F31: 16.4 | H31: 127 | K31: 177 | O31: =translation!AM1 -> Cmo | P31: =CMO -> 1.167251564
B32: 28 | C32: 18 | E32: 78 | F32: 18.5 | H32: 128 | K32: 178 | O32: =translation!AN1 -> Cm | P32: =CM -> 0.9894726812
B33: 29 | C33: 20.9 | E33: 79 | F33: 19 | H33: 129 | K33: 179 | O33: =translation!AO1 -> Cmk | P33: =CMK -> 0.8116937984
B34: 30 | C34: 18.1 | E34: 80 | F34: 20.6 | H34: 130 | K34: 180 | N34: =translation!AQ1 -> Bewertung cmk => | P34: =IF(P33<O19,P19,IF(P33>O21,P21,P20)) -> Prozess nicht fähig
B35: 31 | C35: 19.4 | E35: 81 | F35: 19.2 | H35: 131 | K35: 181
B36: 32 | C36: 20.5 | E36: 82 | F36: 17.1 | H36: 132 | K36: 182 | N36: =translation!AR1 -> Median z | P36: =Median -> 18.9
B37: 33 | C37: 20.4 | E37: 83 | F37: 16.3 | H37: 133 | K37: 183 | N37: =translation!AS1 -> Spannweite R | P37: =Spannweite -> 5.4
B38: 34 | C38: 16.1 | E38: 84 | F38: 17.2 | H38: 134 | K38: 184 | N38: =translation!AT1 -> Minimum | P38: =Minimum -> 16.1
B39: 35 | C39: 18.7 | E39: 85 | F39: 17.9 | H39: 135 | K39: 185 | N39: =translation!AU1 -> Maximum | P39: =Maximum -> 21.5
B40: 36 | C40: 18.8 | E40: 86 | F40: 19.1 | H40: 136 | K40: 186
B41: 37 | C41: 17.3 | E41: 87 | F41: 17.3 | H41: 137 | K41: 187 | N41: =translation!AV1 -> Berechnete Leistung in ppm
B42: 38 | C42: 18.1 | E42: 88 | F42: 19.4 | H42: 138 | K42: 188 | N42: =translation!AW1 -> Über- schreitungs- anteil | O42: =translation!AX1 -> pUGW | P42: =BERPUGW -> 7444.220097
B43: 39 | C43: 19.9 | E43: 89 | F43: 18.3 | H43: 139 | K43: 189 | O43: =translation!AY1 -> pOGW | P43: =BERPOGW -> 231.1024828
B44: 40 | C44: 19.6 | E44: 90 | F44: 19.3 | H44: 140 | K44: 190 | O44: =translation!AZ1 -> p | P44: =BERP -> 7675.32258
B45: 41 | C45: 18.4 | E45: 91 | F45: 17.2 | H45: 141 | K45: 191
B46: 42 | C46: 19.5 | E46: 92 | F46: 17.5 | H46: 142 | K46: 192 | N46: =translation!BA1 -> Beobachtete Leistung in ppm
B47: 43 | C47: 16.8 | E47: 93 | F47: 19.6 | H47: 143 | K47: 193 | N47: =translation!AW1 -> Über- schreitungs- anteil | O47: =translation!AX1 -> pUGW | P47: =BEOBPUGW -> 0
B48: 44 | C48: 17.1 | E48: 94 | F48: 17.6 | H48: 144 | K48: 194 | O48: =translation!AY1 -> pOGW | P48: =BEOBPOGW -> 0
B49: 45 | C49: 18.9 | E49: 95 | F49: 20 | H49: 145 | K49: 195 | O49: =translation!AZ1 -> p | P49: =BEOBPPM -> 0
B50: 46 | C50: 19.7 | E50: 96 | F50: 19.9 | H50: 146 | K50: 196
B51: 47 | C51: 19.7 | E51: 97 | F51: 16.9 | H51: 147 | K51: 197
B52: 48 | C52: 19.2 | E52: 98 | F52: 19.5 | H52: 148 | K52: 198
B53: 49 | C53: 20.6 | E53: 99 | F53: 20.4 | H53: 149 | K53: 199
B54: 50 | C54: 20.1 | E54: 100 | F54: 19.1 | H54: 150 | K54: 200
Y55: © roland.schnurr@sixsigmablackbelt.de

Sheet Berechnung (hidden)
C5: =IF('Eingabe und Diagramm'!C5="","",'Eingabe und Diagramm'!C5) -> 20 | F5: =IF('Eingabe und Diagramm'!F5="","",'Eingabe und Diagramm'!F5) -> 18.8 | I5: =IF('Eingabe und Diagramm'!I5="","",'Eingabe und Diagramm'!I5) -> 16.9 | L5: =IF('Eingabe und Diagramm'!L5="","",'Eingabe und Diagramm'!L5) ->  | AD5: 1 | AE5: =IF((Anzahl>AD5),AD5,Anzahl) -> 1 | AF5: =IF(C5<>"",C5,1) -> 20 | AG5: =IF(C5<>"",OGW,Q17) -> 23 | AH5: =IF(C5<>"",UGW,R17) -> 16 | AI5: =fxds-Standardabweichung -> 17.69207464 | AJ5: =fxds+Standardabweichung -> 20.05023306 | AK5: =fxds-2*Standardabweichung -> 16.51299543 | AL5: =fxds+2*Standardabweichung -> 21.22931226 | AM5: =fxds-3*Standardabweichung -> 15.33391622 | AN5: =fxds+3*Standardabweichung -> 22.40839147 | AO5: =fxds -> 18.87115385 | AQ5: =IF(AND(C5<>"",C5<UGW),1,0) -> 0 | AR5: =IF(AND(C5<>"",C5>OGW),1,0) -> 0 | AV5: -6 | AW5: =fxds+AV5*Standardabweichung -> 11.79667859 | AX5: 3 | AY5: =AX5*2 -> 6 | AZ5: =AW5 -> 11.79667859 | BC5: 1 | BD5: =IF(C5="",NA(),SMALL(xi,BE5)) -> 16.1 | BE5: =IF(C5="","",1) -> 1 | BF5: =IF(C5="","",NORMSDIST((BD5-fxds)/Standardabweichung)) -> 0.009379912609 | BG5: =IF(C5="","",1-BF5) -> 0.9906200874 | BH5: =IF(IF(C5="","",SMALL(BG,BE5))=0,0.0001,IF(C5="","",SMALL(BG,BE5))) -> 0.01288781791 | BI5: =IF(C5="","",(2*BE5-1)*(LN(BH5)+LN(BF5))) -> -9.020657594 | BJ5: =IF(C5="",NA(),NORMSINV((BE5-0.3)/(Anzahl+0.4))) -> -2.472692113 | BM5: =Standardabweichung*BN5+fxds -> 22.40839147 | BN5: 3 | BO5: =SUM(Normalverteilung_S) -> -10855.62831 | BP5: =IF(AND(BO7<13, BO7>=0.6),EXP(1.2937-5.709*BO7+0.0186*BO7^ 2),0) -> 0
C6: =IF('Eingabe und Diagramm'!C6="","",'Eingabe und Diagramm'!C6) -> 21 | F6: =IF('Eingabe und Diagramm'!F6="","",'Eingabe und Diagramm'!F6) -> 17.1 | I6: =IF('Eingabe und Diagramm'!I6="","",'Eingabe und Diagramm'!I6) -> 19.5 | L6: =IF('Eingabe und Diagramm'!L6="","",'Eingabe und Diagramm'!L6) ->  | AD6: 2 | AE6: 2 | AF6: =IF(C6<>"",C6,AG5) -> 21 | AG6: =IF(C6<>"",OGW,AG5) -> 23 | AH6: =IF(C6<>"",UGW,AH5) -> 16 | AI6: =AI5 -> 17.69207464 | AJ6: 20.05023306 | AK6: 16.51299543 | AL6: 21.22931226 | AM6: 15.33391622 | AN6: 22.40839147 | AO6: 18.87115385 | AQ6: 0 | AR6: 0 | AV6: -5 | AW6: 12.9757578 | AX6: 3 | AY6: =AX6*2 -> 6 | AZ6: =AZ5 -> 11.79667859 | BC6: 2 | BD6: 16.3 | BE6: =IF(C6="","",1+BE5) -> 2 | BF6: 0.01460482117 | BG6: 0.9853951788 | BH6: =IF(C6="","",SMALL(BG,BE6)) -> 0.03549700188 | BI6: -22.69413188 | BJ6: -2.137380578 | BM6: =Standardabweichung*BN6+fxds -> 18.87115385 | BN6: 0 | BO6: =-BO5/Anzahl-Anzahl -> 0.3810414859 | BP6: =IF(AND(BO7<0.6,BO7>=0.34),EXP(0.9177-4.279*BO7-1.38*BO7^2),0) -> 0.3952550472
C7: =IF('Eingabe und Diagramm'!C7="","",'Eingabe und Diagramm'!C7) -> 21.5 | F7: =IF('Eingabe und Diagramm'!F7="","",'Eingabe und Diagramm'!F7) -> 18.6 | I7: =IF('Eingabe und Diagramm'!I7="","",'Eingabe und Diagramm'!I7) -> 20.4 | L7: =IF('Eingabe und Diagramm'!L7="","",'Eingabe und Diagramm'!L7) ->  | Q7: =Maßeinheit -> mm | R7: =Merkmal -> Länge | S7: =six_cmu(Mittelwert,UGW,Standardabweichung) -> 0.8116937984 | T7: =MEDIAN(xi) -> 18.9 | U7: =NORMDIST(UGW,Mittelwert,Standardabweichung,1)*1000000 -> 7444.220097 | V7: =AQ205/R8*1000000 -> 0 | AD7: 3 | AE7: 3 | AF7: =IF(C7<>"",C7,AG6) -> 21.5 | AG7: 23 | AH7: 16 | AI7: 17.69207464 | AJ7: 20.05023306 | AK7: 16.51299543 | AL7: 21.22931226 | AM7: 15.33391622 | AN7: 22.40839147 | AO7: 18.87115385 | AQ7: 0 | AR7: 0 | AV7: -4 | AW7: 14.15483701 | AX7: 3 | AY7: 6 | AZ7: =AZ6 -> 11.79667859 | BC7: 3 | BD7: 16.4 | BE7: 3 | BF7: 0.01804847648 | BG7: 0.9819515235 | BH7: 0.04265228725 | BI7: -35.84684191 | BJ7: -1.945422591 | BM7: =Standardabweichung*BN7+fxds -> 15.33391622 | BN7: -3 | BO7: =BO6*(1+0.75/Anzahl+2.25/Anzahl^2) -> 0.3838686474 | BP7: =IF(AND(BO7<0.34,BO7>=0.2),1-EXP(-8.318+42.796*BO7-59.938*BO7^2),0) -> 0
C8: =IF('Eingabe und Diagramm'!C8="","",'Eingabe und Diagramm'!C8) -> 19 | F8: =IF('Eingabe und Diagramm'!F8="","",'Eingabe und Diagramm'!F8) -> 18 | I8: =IF('Eingabe und Diagramm'!I8="","",'Eingabe und Diagramm'!I8) -> 19.1 | L8: =IF('Eingabe und Diagramm'!L8="","",'Eingabe und Diagramm'!L8) ->  | Q8: =Sollwert -> 19 | R8: =six_a(xi) -> 104 | S8: =six_cmo(OGW,Mittelwert,Standardabweichung) -> 1.167251564 | T8: =Maximum-Minimum -> 5.4 | U8: =(1-NORMDIST(OGW,Mittelwert,Standardabweichung,1))*1000000 -> 231.1024828 | V8: =AR205/R8*1000000 -> 0 | AD8: 4 | AE8: 4 | AF8: =IF(C8<>"",C8,AF7) -> 19 | AG8: 23 | AH8: 16 | AI8: 17.69207464 | AJ8: 20.05023306 | AK8: 16.51299543 | AL8: 21.22931226 | AM8: 15.33391622 | AN8: 22.40839147 | AO8: 18.87115385 | AQ8: 0 | AR8: 0 | AV8: -2 | AW8: 16.51299543 | AX8: 3 | AY8: 6 | AZ8: 11.79667859 | BC8: 4 | BD8: 16.6 | BE8: 4 | BF8: 0.02703909566 | BG8: 0.9729609043 | BH8: 0.05093110448 | BI8: -46.11427048 | BJ8: -1.806237651 | BO8: =MAX(BP5:BP8) -> 0.3952550472 | BP8: =IF(BO7<0.2,1-EXP(-13.436+101.14*BO7-223.73*BO7^2),0) -> 0
C9: =IF('Eingabe und Diagramm'!C9="","",'Eingabe und Diagramm'!C9) -> 19 | F9: =IF('Eingabe und Diagramm'!F9="","",'Eingabe und Diagramm'!F9) -> 18.7 | I9: =IF('Eingabe und Diagramm'!I9="","",'Eingabe und Diagramm'!I9) ->  | L9: =IF('Eingabe und Diagramm'!L9="","",'Eingabe und Diagramm'!L9) ->  | Q9: =UGW -> 16 | R9: =six_m(xi) -> 18.87115385 | S9: =six_cm(OGW,UGW,Standardabweichung) -> 0.9894726812 | T9: =MIN(xi) -> 16.1 | U9: =BERPOGW+BERPUGW -> 7675.32258 | V9: =V8+V7 -> 0 | AD9: 5 | AE9: 5 | AF9: 19 | AG9: 23 | AH9: 16 | AI9: 17.69207464 | AJ9: 20.05023306 | AK9: 16.51299543 | AL9: 21.22931226 | AM9: 15.33391622 | AN9: 22.40839147 | AO9: 18.87115385 | AQ9: 0 | AR9: 0 | AV9: -1 | AW9: 17.69207464 | AX9: 3 | AY9: 6 | AZ9: 11.79667859 | BC9: 5 | BD9: 16.8 | BE9: 5 | BF9: 0.03949421394 | BG9: 0.9605057861 | BH9: 0.07128764024 | BI9: -52.85370074 | BJ9: -1.695195638
C10: =IF('Eingabe und Diagramm'!C10="","",'Eingabe und Diagramm'!C10) -> 20.4 | F10: =IF('Eingabe und Diagramm'!F10="","",'Eingabe und Diagramm'!F10) -> 20.3 | I10: =IF('Eingabe und Diagramm'!I10="","",'Eingabe und Diagramm'!I10) ->  | L10: =IF('Eingabe und Diagramm'!L10="","",'Eingabe und Diagramm'!L10) ->  | Q10: =OGW -> 23 | R10: =six_st(xi) -> 1.179079209 | S10: =six_ck(CMO,CMU) -> 0.8116937984 | T10: =MAX(xi) -> 21.5 | AD10: 6 | AE10: 6 | AF10: 20.4 | AG10: 23 | AH10: 16 | AI10: 17.69207464 | AJ10: 20.05023306 | AK10: 16.51299543 | AL10: 21.22931226 | AM10: 15.33391622 | AN10: 22.40839147 | AO10: 18.87115385 | AQ10: 0 | AR10: 0 | AV10: 1 | AW10: 20.05023306 | AX10: 3 | AY10: 6 | AZ10: 11.79667859 | BC10: 6 | BD10: 16.9 | BE10: 6 | BF10: 0.04728445785 | BG10: 0.9527155422 | BH10: 0.07128764024 | BI10: -62.61866533 | BJ10: -1.601820076
C11: =IF('Eingabe und Diagramm'!C11="","",'Eingabe und Diagramm'!C11) -> 18.3 | F11: =IF('Eingabe und Diagramm'!F11="","",'Eingabe und Diagramm'!F11) -> 18.7 | I11: =IF('Eingabe und Diagramm'!I11="","",'Eingabe und Diagramm'!I11) ->  | L11: =IF('Eingabe und Diagramm'!L11="","",'Eingabe und Diagramm'!L11) ->  | R11: Stichprobe chronologisch | S11: OGW | AD11: 7 | AE11: 7 | AF11: 18.3 | AG11: 23 | AH11: 16 | AI11: 17.69207464 | AJ11: 20.05023306 | AK11: 16.51299543 | AL11: 21.22931226 | AM11: 15.33391622 | AN11: 22.40839147 | AO11: 18.87115385 | AQ11: 0 | AR11: 0 | AV11: 2 | AW11: 21.22931226 | AX11: 3 | AY11: 6 | AZ11: 11.79667859 | BC11: 7 | BD11: 16.9 | BE11: 7 | BF11: 0.04728445785 | BG11: 0.9527155422 | BH11: 0.08356938506 | BI11: -71.93747155 | BJ11: -1.52063089
C12: =IF('Eingabe und Diagramm'!C12="","",'Eingabe und Diagramm'!C12) -> 19.9 | F12: =IF('Eingabe und Diagramm'!F12="","",'Eingabe und Diagramm'!F12) -> 18.8 | I12: =IF('Eingabe und Diagramm'!I12="","",'Eingabe und Diagramm'!I12) ->  | L12: =IF('Eingabe und Diagramm'!L12="","",'Eingabe und Diagramm'!L12) ->  | R12: Wahrscheinlichkeitsnetz | S12: UGW | AD12: 8 | AE12: 8 | AF12: 19.9 | AG12: 23 | AH12: 16 | AI12: 17.69207464 | AJ12: 20.05023306 | AK12: 16.51299543 | AL12: 21.22931226 | AM12: 15.33391622 | AN12: 22.40839147 | AO12: 18.87115385 | AQ12: 0 | AR12: 0 | AV12: 4 | AW12: 23.58747068 | AX12: 3 | AY12: 6 | AZ12: 11.79667859 | BC12: 8 | BD12: 17.1 | BE12: 8 | BF12: 0.0665291859 | BG12: 0.9334708141 | BH12: 0.08356938506 | BI12: -77.88288863 | BJ12: -1.448384388
C13: =IF('Eingabe und Diagramm'!C13="","",'Eingabe und Diagramm'!C13) -> 18.7 | F13: =IF('Eingabe und Diagramm'!F13="","",'Eingabe und Diagramm'!F13) -> 19.4 | I13: =IF('Eingabe und Diagramm'!I13="","",'Eingabe und Diagramm'!I13) ->  | L13: =IF('Eingabe und Diagramm'!L13="","",'Eingabe und Diagramm'!L13) ->  | R13: Test auf Normalverteilung (Anderson Darling) | S13: ="+ 3 Sigma" -> + 3 Sigma | AD13: 9 | AE13: 9 | AF13: 18.7 | AG13: 23 | AH13: 16 | AI13: 17.69207464 | AJ13: 20.05023306 | AK13: 16.51299543 | AL13: 21.22931226 | AM13: 15.33391622 | AN13: 22.40839147 | AO13: 18.87115385 | AQ13: 0 | AR13: 0 | AV13: 5 | AW13: 24.76654989 | AX13: 3 | AY13: 6 | AZ13: 11.79667859 | BC13: 9 | BD13: 17.1 | BE13: 9 | BF13: 0.0665291859 | BG13: 0.9334708141 | BH13: 0.08356938506 | BI13: -88.26727378 | BJ13: -1.382994127
C14: =IF('Eingabe und Diagramm'!C14="","",'Eingabe und Diagramm'!C14) -> 18 | F14: =IF('Eingabe und Diagramm'!F14="","",'Eingabe und Diagramm'!F14) -> 18.5 | I14: =IF('Eingabe und Diagramm'!I14="","",'Eingabe und Diagramm'!I14) ->  | L14: =IF('Eingabe und Diagramm'!L14="","",'Eingabe und Diagramm'!L14) ->  | R14: Prozess- und Maschinenfähigkeit | S14: ="- 3 Sigma" -> - 3 Sigma | AD14: 10 | AE14: 10 | AF14: 18 | AG14: 23 | AH14: 16 | AI14: 17.69207464 | AJ14: 20.05023306 | AK14: 16.51299543 | AL14: 21.22931226 | AM14: 15.33391622 | AN14: 22.40839147 | AO14: 18.87115385 | AQ14: 0 | AR14: 0 | AV14: 6 | AW14: 25.9456291 | AX14: 3 | AY14: 6 | AZ14: 11.79667859 | BC14: 10 | BD14: 17.1 | BE14: 10 | BF14: 0.0665291859 | BG14: 0.9334708141 | BH14: 0.09737682784 | BI14: -95.74634937 | BJ14: -1.323034952
C15: =IF('Eingabe und Diagramm'!C15="","",'Eingabe und Diagramm'!C15) -> 17.7 | F15: =IF('Eingabe und Diagramm'!F15="","",'Eingabe und Diagramm'!F15) -> 18.6 | I15: =IF('Eingabe und Diagramm'!I15="","",'Eingabe und Diagramm'!I15) ->  | L15: =IF('Eingabe und Diagramm'!L15="","",'Eingabe und Diagramm'!L15) ->  | S15: Mittelwert | AD15: 11 | AE15: 11 | AF15: 17.7 | AG15: 23 | AH15: 16 | AI15: 17.69207464 | AJ15: 20.05023306 | AK15: 16.51299543 | AL15: 21.22931226 | AM15: 15.33391622 | AN15: 22.40839147 | AO15: 18.87115385 | AQ15: 0 | AR15: 0 | AV15: -3 | AW15: 15.33391622 | AX15: 3 | AY15: 6 | AZ15: 11.79667859 | BC15: 11 | BD15: 17.2 | BE15: 11 | BF15: 0.07819205544 | BG15: 0.9218079446 | BH15: 0.09737682784 | BI15: -102.4328389 | BJ15: -1.267488025
C16: =IF('Eingabe und Diagramm'!C16="","",'Eingabe und Diagramm'!C16) -> 19.1 | F16: =IF('Eingabe und Diagramm'!F16="","",'Eingabe und Diagramm'!F16) -> 19.6 | I16: =IF('Eingabe und Diagramm'!I16="","",'Eingabe und Diagramm'!I16) ->  | L16: =IF('Eingabe und Diagramm'!L16="","",'Eingabe und Diagramm'!L16) ->  | S16: Sollwert | AD16: 12 | AE16: 12 | AF16: 19.1 | AG16: 23 | AH16: 16 | AI16: 17.69207464 | AJ16: 20.05023306 | AK16: 16.51299543 | AL16: 21.22931226 | AM16: 15.33391622 | AN16: 22.40839147 | AO16: 18.87115385 | AQ16: 0 | AR16: 0 | AV16: 3 | AW16: 22.40839147 | AX16: 3 | AY16: 6 | AZ16: 11.79667859 | BC16: 12 | BD16: 17.2 | BE16: 12 | BF16: 0.07819205544 | BG16: 0.9218079446 | BH16: 0.09737682784 | BI16: -112.1883474 | BJ16: -1.215598434
C17: =IF('Eingabe und Diagramm'!C17="","",'Eingabe und Diagramm'!C17) -> 19.7 | F17: =IF('Eingabe und Diagramm'!F17="","",'Eingabe und Diagramm'!F17) -> 18.5 | I17: =IF('Eingabe und Diagramm'!I17="","",'Eingabe und Diagramm'!I17) ->  | L17: =IF('Eingabe und Diagramm'!L17="","",'Eingabe und Diagramm'!L17) ->  | Q17: OGW | R17: UGW | S17: =" - 1 Sigma" -> - 1 Sigma | T17: =" + 1 Sigma" -> + 1 Sigma | U17: ="- 2 Sigma" -> - 2 Sigma | V17: =" + 2 Sigma" -> + 2 Sigma | W17: =" - 3 Sigma" -> - 3 Sigma | X17: =" + 3 Sigma" -> + 3 Sigma | Y17: =" Mittelwert" -> Mittelwert | AD17: 13 | AE17: 13 | AF17: 19.7 | AG17: 23 | AH17: 16 | AI17: 17.69207464 | AJ17: 20.05023306 | AK17: 16.51299543 | AL17: 21.22931226 | AM17: 15.33391622 | AN17: 22.40839147 | AO17: 18.87115385 | AQ17: 0 | AR17: 0 | BC17: 13 | BD17: 17.3 | BE17: 13 | BF17: 0.0913436818 | BG17: 0.9086563182 | BH17: 0.09737682784 | BI17: -118.0573292 | BJ17: -1.166790414
C18: =IF('Eingabe und Diagramm'!C18="","",'Eingabe und Diagramm'!C18) -> 18.1 | F18: =IF('Eingabe und Diagramm'!F18="","",'Eingabe und Diagramm'!F18) -> 20 | I18: =IF('Eingabe und Diagramm'!I18="","",'Eingabe und Diagramm'!I18) ->  | L18: =IF('Eingabe und Diagramm'!L18="","",'Eingabe und Diagramm'!L18) ->  | AD18: 14 | AE18: 14 | AF18: 18.1 | AG18: 23 | AH18: 16 | AI18: 17.69207464 | AJ18: 20.05023306 | AK18: 16.51299543 | AL18: 21.22931226 | AM18: 15.33391622 | AN18: 22.40839147 | AO18: 18.87115385 | AQ18: 0 | AR18: 0 | AV18: =Mittelwert -> 18.87115385 | AW18: 3 | BC18: 14 | BD18: 17.3 | BE18: 14 | BF18: 0.0913436818 | BG18: 0.9086563182 | BH18: 0.1127883096 | BI18: -123.5349562 | BJ18: -1.120614225
C19: =IF('Eingabe und Diagramm'!C19="","",'Eingabe und Diagramm'!C19) -> 18.4 | F19: =IF('Eingabe und Diagramm'!F19="","",'Eingabe und Diagramm'!F19) -> 17.8 | I19: =IF('Eingabe und Diagramm'!I19="","",'Eingabe und Diagramm'!I19) ->  | L19: =IF('Eingabe und Diagramm'!L19="","",'Eingabe und Diagramm'!L19) ->  | AD19: 15 | AE19: 15 | AF19: 18.4 | AG19: 23 | AH19: 16 | AI19: 17.69207464 | AJ19: 20.05023306 | AK19: 16.51299543 | AL19: 21.22931226 | AM19: 15.33391622 | AN19: 22.40839147 | AO19: 18.87115385 | AQ19: 0 | AR19: 0 | AV19: =OGW -> 23 | AW19: 3 | BC19: 15 | BD19: 17.3 | BE19: 15 | BF19: 0.0913436818 | BG19: 0.9086563182 | BH19: 0.1298669582 | BI19: -128.5967565 | BJ19: -1.07671145
C20: =IF('Eingabe und Diagramm'!C20="","",'Eingabe und Diagramm'!C20) -> 17.5 | F20: =IF('Eingabe und Diagramm'!F20="","",'Eingabe und Diagramm'!F20) -> 19.8 | I20: =IF('Eingabe und Diagramm'!I20="","",'Eingabe und Diagramm'!I20) ->  | L20: =IF('Eingabe und Diagramm'!L20="","",'Eingabe und Diagramm'!L20) ->  | AD20: 16 | AE20: 16 | AF20: 17.5 | AG20: 23 | AH20: 16 | AI20: 17.69207464 | AJ20: 20.05023306 | AK20: 16.51299543 | AL20: 21.22931226 | AM20: 15.33391622 | AN20: 22.40839147 | AO20: 18.87115385 | AQ20: 0 | AR20: 0 | AV20: =UGW -> 16 | AW20: 3 | BC20: 16 | BD20: 17.5 | BE20: 16 | BF20: 0.1224345856 | BG20: 0.8775654144 | BH20: 0.1486575548 | BI20: -124.1949371 | BJ20: -1.034791521
C21: =IF('Eingabe und Diagramm'!C21="","",'Eingabe und Diagramm'!C21) -> 18.9 | F21: =IF('Eingabe und Diagramm'!F21="","",'Eingabe und Diagramm'!F21) -> 16.6 | I21: =IF('Eingabe und Diagramm'!I21="","",'Eingabe und Diagramm'!I21) ->  | L21: =IF('Eingabe und Diagramm'!L21="","",'Eingabe und Diagramm'!L21) ->  | AD21: 17 | AE21: 17 | AF21: 18.9 | AG21: 23 | AH21: 16 | AI21: 17.69207464 | AJ21: 20.05023306 | AK21: 16.51299543 | AL21: 21.22931226 | AM21: 15.33391622 | AN21: 22.40839147 | AO21: 18.87115385 | AQ21: 0 | AR21: 0 | AV21: =Sollwert -> 19 | AW21: 3 | BC21: 17 | BD21: 17.5 | BE21: 17 | BF21: 0.1224345856 | BG21: 0.8775654144 | BH21: 0.1486575548 | BI21: -132.2075137 | BJ21: -0.994615365
C22: =IF('Eingabe und Diagramm'!C22="","",'Eingabe und Diagramm'!C22) -> 19 | F22: =IF('Eingabe und Diagramm'!F22="","",'Eingabe und Diagramm'!F22) -> 19.4 | I22: =IF('Eingabe und Diagramm'!I22="","",'Eingabe und Diagramm'!I22) ->  | L22: =IF('Eingabe und Diagramm'!L22="","",'Eingabe und Diagramm'!L22) ->  | AD22: 18 | AE22: 18 | AF22: 19 | AG22: 23 | AH22: 16 | AI22: =AI21 -> 17.69207464 | AJ22: 20.05023306 | AK22: 16.51299543 | AL22: 21.22931226 | AM22: 15.33391622 | AN22: 22.40839147 | AO22: 18.87115385 | AQ22: 0 | AR22: 0 | BC22: 18 | BD22: 17.6 | BE22: 18 | BF22: 0.1404967323 | BG22: 0.8595032677 | BH22: 0.1691836152 | BI22: -130.8769602 | BJ22: -0.9559837196
C23: =IF('Eingabe und Diagramm'!C23="","",'Eingabe und Diagramm'!C23) -> 20.5 | F23: =IF('Eingabe und Diagramm'!F23="","",'Eingabe und Diagramm'!F23) -> 19.3 | I23: =IF('Eingabe und Diagramm'!I23="","",'Eingabe und Diagramm'!I23) ->  | L23: =IF('Eingabe und Diagramm'!L23="","",'Eingabe und Diagramm'!L23) ->  | AD23: 19 | AE23: 19 | AF23: 20.5 | AG23: 23 | AH23: 16 | AI23: 17.69207464 | AJ23: 20.05023306 | AK23: 16.51299543 | AL23: 21.22931226 | AM23: 15.33391622 | AN23: 22.40839147 | AO23: 18.87115385 | AQ23: 0 | AR23: 0 | BC23: 19 | BD23: 17.7 | BE23: 19 | BF23: 0.1602871637 | BG23: 0.8397128363 | BH23: 0.1691836152 | BI23: -133.479682 | BJ23: -0.9187285975
C24: =IF('Eingabe und Diagramm'!C24="","",'Eingabe und Diagramm'!C24) -> 17.3 | F24: =IF('Eingabe und Diagramm'!F24="","",'Eingabe und Diagramm'!F24) -> 20.1 | I24: =IF('Eingabe und Diagramm'!I24="","",'Eingabe und Diagramm'!I24) ->  | L24: =IF('Eingabe und Diagramm'!L24="","",'Eingabe und Diagramm'!L24) ->  | AD24: 20 | AE24: 20 | AF24: 17.3 | AG24: 23 | AH24: 16 | AI24: 17.69207464 | AJ24: 20.05023306 | AK24: 16.51299543 | AL24: 21.22931226 | AM24: 15.33391622 | AN24: 22.40839147 | AO24: 18.87115385 | AQ24: 0 | AR24: 0 | BC24: 20 | BD24: 17.7 | BE24: 20 | BF24: 0.1602871637 | BG24: 0.8397128363 | BH24: 0.1691836152 | BI24: -140.6947999 | BJ24: -0.8827069317
C25: =IF('Eingabe und Diagramm'!C25="","",'Eingabe und Diagramm'!C25) -> 18.3 | F25: =IF('Eingabe und Diagramm'!F25="","",'Eingabe und Diagramm'!F25) -> 20.5 | I25: =IF('Eingabe und Diagramm'!I25="","",'Eingabe und Diagramm'!I25) ->  | L25: =IF('Eingabe und Diagramm'!L25="","",'Eingabe und Diagramm'!L25) ->  | AD25: 21 | AE25: 21 | AF25: 18.3 | AG25: 23 | AH25: 16 | AI25: 17.69207464 | AJ25: 20.05023306 | AK25: 16.51299543 | AL25: 21.22931226 | AM25: 15.33391622 | AN25: 22.40839147 | AO25: 18.87115385 | AQ25: 0 | AR25: 0 | BC25: 21 | BD25: 17.8 | BE25: 21 | BF25: 0.1818159287 | BG25: 0.8181840713 | BH25: 0.1691836152 | BI25: -142.7427775 | BJ25: -0.8477957612
C26: =IF('Eingabe und Diagramm'!C26="","",'Eingabe und Diagramm'!C26) -> 18.4 | F26: =IF('Eingabe und Diagramm'!F26="","",'Eingabe und Diagramm'!F26) -> 20 | I26: =IF('Eingabe und Diagramm'!I26="","",'Eingabe und Diagramm'!I26) ->  | L26: =IF('Eingabe und Diagramm'!L26="","",'Eingabe und Diagramm'!L26) ->  | AD26: 22 | AE26: 22 | AF26: 18.4 | AG26: 23 | AH26: 16 | AI26: 17.69207464 | AJ26: 20.05023306 | AK26: 16.51299543 | AL26: 21.22931226 | AM26: 15.33391622 | AN26: 22.40839147 | AO26: 18.87115385 | AQ26: 0 | AR26: 0 | BC26: 22 | BD26: 17.9 | BE26: 22 | BF26: 0.2050679619 | BG26: 0.7949320381 | BH26: 0.1914448165 | BI26: -139.2154889 | BJ26: -0.8138885298
C27: =IF('Eingabe und Diagramm'!C27="","",'Eingabe und Diagramm'!C27) -> 18.6 | F27: =IF('Eingabe und Diagramm'!F27="","",'Eingabe und Diagramm'!F27) -> 20.8 | I27: =IF('Eingabe und Diagramm'!I27="","",'Eingabe und Diagramm'!I27) ->  | L27: =IF('Eingabe und Diagramm'!L27="","",'Eingabe und Diagramm'!L27) ->  | AD27: 23 | AE27: 23 | AF27: 18.6 | AG27: 23 | AH27: 16 | AI27: 17.69207464 | AJ27: 20.05023306 | AK27: 16.51299543 | AL27: 21.22931226 | AM27: 15.33391622 | AN27: 22.40839147 | AO27: 18.87115385 | AQ27: 0 | AR27: 0 | BC27: 23 | BD27: 18 | BE27: 23 | BF27: 0.2300013167 | BG27: 0.7699986833 | BH27: 0.1914448165 | BI27: -140.5271665 | BJ27: -0.7808921994
C28: =IF('Eingabe und Diagramm'!C28="","",'Eingabe und Diagramm'!C28) -> 19.8 | F28: =IF('Eingabe und Diagramm'!F28="","",'Eingabe und Diagramm'!F28) -> 17.7 | I28: =IF('Eingabe und Diagramm'!I28="","",'Eingabe und Diagramm'!I28) ->  | L28: =IF('Eingabe und Diagramm'!L28="","",'Eingabe und Diagramm'!L28) ->  | AD28: 24 | AE28: 24 | AF28: 19.8 | AG28: 23 | AH28: 16 | AI28: 17.69207464 | AJ28: 20.05023306 | AK28: 16.51299543 | AL28: 21.22931226 | AM28: 15.33391622 | AN28: 22.40839147 | AO28: 18.87115385 | AQ28: 0 | AR28: 0 | BC28: 24 | BD28: 18 | BE28: 24 | BF28: 0.2300013167 | BG28: 0.7699986833 | BH28: 0.1914448165 | BI28: -146.7728183 | BJ28: -0.7487249731
C29: =IF('Eingabe und Diagramm'!C29="","",'Eingabe und Diagramm'!C29) -> 20.2 | F29: =IF('Eingabe und Diagramm'!F29="","",'Eingabe und Diagramm'!F29) -> 18.9 | I29: =IF('Eingabe und Diagramm'!I29="","",'Eingabe und Diagramm'!I29) ->  | L29: =IF('Eingabe und Diagramm'!L29="","",'Eingabe und Diagramm'!L29) ->  | AD29: 25 | AE29: 25 | AF29: 20.2 | AG29: 23 | AH29: 16 | AI29: 17.69207464 | AJ29: 20.05023306 | AK29: 16.51299543 | AL29: 21.22931226 | AM29: 15.33391622 | AN29: 22.40839147 | AO29: 18.87115385 | AQ29: 0 | AR29: 0 | BC29: 25 | BD29: 18 | BE29: 25 | BF29: 0.2300013167 | BG29: 0.7699986833 | BH29: 0.2154149003 | BI29: -147.2381198 | BJ29: -0.7173144767
C30: =IF('Eingabe und Diagramm'!C30="","",'Eingabe und Diagramm'!C30) -> 18.5 | F30: =IF('Eingabe und Diagramm'!F30="","",'Eingabe und Diagramm'!F30) -> 18.8 | I30: =IF('Eingabe und Diagramm'!I30="","",'Eingabe und Diagramm'!I30) ->  | L30: =IF('Eingabe und Diagramm'!L30="","",'Eingabe und Diagramm'!L30) ->  | AD30: 26 | AE30: 26 | AF30: 18.5 | AG30: 23 | AH30: 16 | AI30: 17.69207464 | AJ30: 20.05023306 | AK30: 16.51299543 | AL30: 21.22931226 | AM30: 15.33391622 | AN30: 22.40839147 | AO30: 18.87115385 | AQ30: 0 | AR30: 0 | BC30: 26 | BD30: 18.1 | BE30: 26 | BF30: 0.2565460557 | BG30: 0.7434539443 | BH30: 0.2154149003 | BI30: -147.6774573 | BJ30: -0.6865962936
C31: =IF('Eingabe und Diagramm'!C31="","",'Eingabe und Diagramm'!C31) -> 18.5 | F31: =IF('Eingabe und Diagramm'!F31="","",'Eingabe und Diagramm'!F31) -> 16.4 | I31: =IF('Eingabe und Diagramm'!I31="","",'Eingabe und Diagramm'!I31) ->  | L31: =IF('Eingabe und Diagramm'!L31="","",'Eingabe und Diagramm'!L31) ->  | AD31: 27 | AE31: 27 | AF31: 18.5 | AG31: 23 | AH31: 16 | AI31: 17.69207464 | AJ31: 20.05023306 | AK31: 16.51299543 | AL31: 21.22931226 | AM31: 15.33391622 | AN31: 22.40839147 | AO31: 18.87115385 | AQ31: 0 | AR31: 0 | BC31: 27 | BD31: 18.1 | BE31: 27 | BF31: 0.2565460557 | BG31: 0.7434539443 | BH31: 0.2410401716 | BI31: -147.5116537 | BJ31: -0.6565127715
C32: =IF('Eingabe und Diagramm'!C32="","",'Eingabe und Diagramm'!C32) -> 18 | F32: =IF('Eingabe und Diagramm'!F32="","",'Eingabe und Diagramm'!F32) -> 18.5 | I32: =IF('Eingabe und Diagramm'!I32="","",'Eingabe und Diagramm'!I32) ->  | L32: =IF('Eingabe und Diagramm'!L32="","",'Eingabe und Diagramm'!L32) ->  | AD32: 28 | AE32: 28 | AF32: 18 | AG32: 23 | AH32: 16 | AI32: 17.69207464 | AJ32: 20.05023306 | AK32: 16.51299543 | AL32: 21.22931226 | AM32: 15.33391622 | AN32: 22.40839147 | AO32: 18.87115385 | AQ32: 0 | AR32: 0 | BC32: 28 | BD32: 18.1 | BE32: 28 | BF32: 0.2565460557 | BG32: 0.7434539443 | BH32: 0.2410401716 | BI32: -153.0781312 | BJ32: -0.627012043
C33: =IF('Eingabe und Diagramm'!C33="","",'Eingabe und Diagramm'!C33) -> 20.9 | F33: =IF('Eingabe und Diagramm'!F33="","",'Eingabe und Diagramm'!F33) -> 19 | I33: =IF('Eingabe und Diagramm'!I33="","",'Eingabe und Diagramm'!I33) ->  | L33: =IF('Eingabe und Diagramm'!L33="","",'Eingabe und Diagramm'!L33) ->  | AD33: 29 | AE33: 29 | AF33: 20.9 | AG33: 23 | AH33: 16 | AI33: 17.69207464 | AJ33: 20.05023306 | AK33: 16.51299543 | AL33: 21.22931226 | AM33: 15.33391622 | AN33: 22.40839147 | AO33: 18.87115385 | AQ33: 0 | AR33: 0 | BC33: 29 | BD33: 18.3 | BE33: 29 | BF33: 0.314048639 | BG33: 0.685951361 | BH33: 0.2410401716 | BI33: -147.1169473 | BJ33: -0.5980472154
C34: =IF('Eingabe und Diagramm'!C34="","",'Eingabe und Diagramm'!C34) -> 18.1 | F34: =IF('Eingabe und Diagramm'!F34="","",'Eingabe und Diagramm'!F34) -> 20.6 | I34: =IF('Eingabe und Diagramm'!I34="","",'Eingabe und Diagramm'!I34) ->  | L34: =IF('Eingabe und Diagramm'!L34="","",'Eingabe und Diagramm'!L34) ->  | AD34: 30 | AE34: 30 | AF34: 18.1 | AG34: 23 | AH34: 16 | AI34: 17.69207464 | AJ34: 20.05023306 | AK34: 16.51299543 | AL34: 21.22931226 | AM34: 15.33391622 | AN34: 22.40839147 | AO34: 18.87115385 | AQ34: 0 | AR34: 0 | BC34: 30 | BD34: 18.3 | BE34: 30 | BF34: 0.314048639 | BG34: 0.685951361 | BH34: 0.2682386967 | BI34: -145.9710409 | BJ34: -0.5695756949
C35: =IF('Eingabe und Diagramm'!C35="","",'Eingabe und Diagramm'!C35) -> 19.4 | F35: =IF('Eingabe und Diagramm'!F35="","",'Eingabe und Diagramm'!F35) -> 19.2 | I35: =IF('Eingabe und Diagramm'!I35="","",'Eingabe und Diagramm'!I35) ->  | L35: =IF('Eingabe und Diagramm'!L35="","",'Eingabe und Diagramm'!L35) ->  | AD35: 31 | AE35: 31 | AF35: 19.4 | AG35: 23 | AH35: 16 | AI35: 17.69207464 | AJ35: 20.05023306 | AK35: 16.51299543 | AL35: 21.22931226 | AM35: 15.33391622 | AN35: 22.40839147 | AO35: 18.87115385 | AQ35: 0 | AR35: 0 | BC35: 31 | BD35: 18.3 | BE35: 31 | BF35: 0.314048639 | BG35: 0.685951361 | BH35: 0.2682386967 | BI35: -150.9192118 | BJ35: -0.5415586189
C36: =IF('Eingabe und Diagramm'!C36="","",'Eingabe und Diagramm'!C36) -> 20.5 | F36: =IF('Eingabe und Diagramm'!F36="","",'Eingabe und Diagramm'!F36) -> 17.1 | I36: =IF('Eingabe und Diagramm'!I36="","",'Eingabe und Diagramm'!I36) ->  | L36: =IF('Eingabe und Diagramm'!L36="","",'Eingabe und Diagramm'!L36) ->  | AD36: 32 | AE36: 32 | AF36: 20.5 | AG36: 23 | AH36: 16 | AI36: 17.69207464 | AJ36: 20.05023306 | AK36: 16.51299543 | AL36: 21.22931226 | AM36: 15.33391622 | AN36: 22.40839147 | AO36: 18.87115385 | AQ36: 0 | AR36: 0 | BC36: 32 | BD36: 18.4 | BE36: 32 | BF36: 0.3447275169 | BG36: 0.6552724831 | BH36: 0.2682386967 | BI36: -149.995378 | BJ36: -0.5139603769
C37: =IF('Eingabe und Diagramm'!C37="","",'Eingabe und Diagramm'!C37) -> 20.4 | F37: =IF('Eingabe und Diagramm'!F37="","",'Eingabe und Diagramm'!F37) -> 16.3 | I37: =IF('Eingabe und Diagramm'!I37="","",'Eingabe und Diagramm'!I37) ->  | L37: =IF('Eingabe und Diagramm'!L37="","",'Eingabe und Diagramm'!L37) ->  | AD37: 33 | AE37: =IF((Anzahl>AD37),AD37,Anzahl) -> 33 | AF37: 20.4 | AG37: =IF(C37<>"",OGW,AG36) -> 23 | AH37: =IF(C37<>"",UGW,AH36) -> 16 | AI37: 17.69207464 | AJ37: 20.05023306 | AK37: 16.51299543 | AL37: 21.22931226 | AM37: 15.33391622 | AN37: 22.40839147 | AO37: 18.87115385 | AQ37: =IF(AND(C37<>"",C37<UGW),1,0) -> 0 | AR37: =IF(AND(C37<>"",C37>OGW),1,0) -> 0 | BC37: 33 | BD37: =IF(C37="",NA(),SMALL(xi,BE37)) -> 18.4 | BE37: 33 | BF37: =IF(C37="","",NORMSDIST((BD37-fxds)/Standardabweichung)) -> 0.3447275169 | BG37: =IF(C37="","",1-BF37) -> 0.6552724831 | BH37: =IF(C37="","",SMALL(BG,BE37)) -> 0.2969002814 | BI37: =IF(C37="","",(2*BE37-1)*(LN(BH37)+LN(BF37))) -> -148.1583954 | BJ37: =IF(C37="",NA(),NORMSINV((BE37-0.3)/(Anzahl+0.4))) -> -0.4867482021
C38: =IF('Eingabe und Diagramm'!C38="","",'Eingabe und Diagramm'!C38) -> 16.1 | F38: =IF('Eingabe und Diagramm'!F38="","",'Eingabe und Diagramm'!F38) -> 17.2 | I38: =IF('Eingabe und Diagramm'!I38="","",'Eingabe und Diagramm'!I38) ->  | L38: =IF('Eingabe und Diagramm'!L38="","",'Eingabe und Diagramm'!L38) ->  | AD38: 34 | AE38: 34 | AF38: 16.1 | AG38: 23 | AH38: 16 | AI38: =AI37 -> 17.69207464 | AJ38: 20.05023306 | AK38: 16.51299543 | AL38: 21.22931226 | AM38: 15.33391622 | AN38: 22.40839147 | AO38: 18.87115385 | AQ38: 0 | AR38: 0 | BC38: 34 | BD38: 18.4 | BE38: =IF(C38="","",1+BE37) -> 34 | BF38: 0.3447275169 | BG38: 0.6552724831 | BH38: 0.2969002814 | BI38: -152.7171153 | BJ38: -0.4598918231
C39: =IF('Eingabe und Diagramm'!C39="","",'Eingabe und Diagramm'!C39) -> 18.7 | F39: =IF('Eingabe und Diagramm'!F39="","",'Eingabe und Diagramm'!F39) -> 17.9 | I39: =IF('Eingabe und Diagramm'!I39="","",'Eingabe und Diagramm'!I39) ->  | L39: =IF('Eingabe und Diagramm'!L39="","",'Eingabe und Diagramm'!L39) ->  | AD39: 35 | AE39: 35 | AF39: 18.7 | AG39: 23 | AH39: 16 | AI39: 17.69207464 | AJ39: 20.05023306 | AK39: 16.51299543 | AL39: 21.22931226 | AM39: 15.33391622 | AN39: 22.40839147 | AO39: 18.87115385 | AQ39: 0 | AR39: 0 | BC39: 35 | BD39: 18.5 | BE39: 35 | BF39: 0.3764632888 | BG39: 0.6235367112 | BH39: 0.2969002814 | BI39: -151.1992648 | BJ39: -0.4333631628
C40: =IF('Eingabe und Diagramm'!C40="","",'Eingabe und Diagramm'!C40) -> 18.8 | F40: =IF('Eingabe und Diagramm'!F40="","",'Eingabe und Diagramm'!F40) -> 19.1 | I40: =IF('Eingabe und Diagramm'!I40="","",'Eingabe und Diagramm'!I40) ->  | L40: =IF('Eingabe und Diagramm'!L40="","",'Eingabe und Diagramm'!L40) ->  | AD40: 36 | AE40: 36 | AF40: 18.8 | AG40: 23 | AH40: 16 | AI40: 17.69207464 | AJ40: 20.05023306 | AK40: 16.51299543 | AL40: 21.22931226 | AM40: 15.33391622 | AN40: 22.40839147 | AO40: 18.87115385 | AQ40: 0 | AR40: 0 | BC40: 36 | BD40: 18.5 | BE40: 36 | BF40: 0.3764632888 | BG40: 0.6235367112 | BH40: 0.3268872805 | BI40: -148.7502979 | BJ40: -0.407136079
C41: =IF('Eingabe und Diagramm'!C41="","",'Eingabe und Diagramm'!C41) -> 17.3 | F41: =IF('Eingabe und Diagramm'!F41="","",'Eingabe und Diagramm'!F41) -> 17.3 | I41: =IF('Eingabe und Diagramm'!I41="","",'Eingabe und Diagramm'!I41) ->  | L41: =IF('Eingabe und Diagramm'!L41="","",'Eingabe und Diagramm'!L41) ->  | AD41: 37 | AE41: 37 | AF41: 17.3 | AG41: 23 | AH41: 16 | AI41: 17.69207464 | AJ41: 20.05023306 | AK41: 16.51299543 | AL41: 21.22931226 | AM41: 15.33391622 | AN41: 22.40839147 | AO41: 18.87115385 | AQ41: 0 | AR41: 0 | BC41: 37 | BD41: 18.5 | BE41: 37 | BF41: 0.3764632888 | BG41: 0.6235367112 | BH41: 0.3268872805 | BI41: -152.9404471 | BJ41: -0.3811861383
C42: =IF('Eingabe und Diagramm'!C42="","",'Eingabe und Diagramm'!C42) -> 18.1 | F42: =IF('Eingabe und Diagramm'!F42="","",'Eingabe und Diagramm'!F42) -> 19.4 | I42: =IF('Eingabe und Diagramm'!I42="","",'Eingabe und Diagramm'!I42) ->  | L42: =IF('Eingabe und Diagramm'!L42="","",'Eingabe und Diagramm'!L42) ->  | AD42: 38 | AE42: 38 | AF42: 18.1 | AG42: 23 | AH42: 16 | AI42: 17.69207464 | AJ42: 20.05023306 | AK42: 16.51299543 | AL42: 21.22931226 | AM42: 15.33391622 | AN42: 22.40839147 | AO42: 18.87115385 | AQ42: 0 | AR42: 0 | BC42: 38 | BD42: 18.5 | BE42: 38 | BF42: 0.3764632888 | BG42: 0.6235367112 | BH42: 0.3268872805 | BI42: -157.1305964 | BJ42: -0.3554904178
C43: =IF('Eingabe und Diagramm'!C43="","",'Eingabe und Diagramm'!C43) -> 19.9 | F43: =IF('Eingabe und Diagramm'!F43="","",'Eingabe und Diagramm'!F43) -> 18.3 | I43: =IF('Eingabe und Diagramm'!I43="","",'Eingabe und Diagramm'!I43) ->  | L43: =IF('Eingabe und Diagramm'!L43="","",'Eingabe und Diagramm'!L43) ->  | AD43: 39 | AE43: 39 | AF43: 19.9 | AG43: 23 | AH43: 16 | AI43: 17.69207464 | AJ43: 20.05023306 | AK43: 16.51299543 | AL43: 21.22931226 | AM43: 15.33391622 | AN43: 22.40839147 | AO43: 18.87115385 | AQ43: 0 | AR43: 0 | BC43: 39 | BD43: 18.5 | BE43: 39 | BF43: 0.3764632888 | BG43: 0.6235367112 | BH43: 0.3268872805 | BI43: -161.3207456 | BJ43: -0.3300273317
C44: =IF('Eingabe und Diagramm'!C44="","",'Eingabe und Diagramm'!C44) -> 19.6 | F44: =IF('Eingabe und Diagramm'!F44="","",'Eingabe und Diagramm'!F44) -> 19.3 | I44: =IF('Eingabe und Diagramm'!I44="","",'Eingabe und Diagramm'!I44) ->  | L44: =IF('Eingabe und Diagramm'!L44="","",'Eingabe und Diagramm'!L44) ->  | AD44: 40 | AE44: 40 | AF44: 19.6 | AG44: 23 | AH44: 16 | AI44: 17.69207464 | AJ44: 20.05023306 | AK44: 16.51299543 | AL44: 21.22931226 | AM44: 15.33391622 | AN44: 22.40839147 | AO44: 18.87115385 | AQ44: 0 | AR44: 0 | BC44: 40 | BD44: 18.6 | BE44: 40 | BF44: 0.4090572111 | BG44: 0.5909427889 | BH44: 0.3580362569 | BI44: -151.7606806 | BJ44: -0.3047764768
C45: =IF('Eingabe und Diagramm'!C45="","",'Eingabe und Diagramm'!C45) -> 18.4 | F45: =IF('Eingabe und Diagramm'!F45="","",'Eingabe und Diagramm'!F45) -> 17.2 | I45: =IF('Eingabe und Diagramm'!I45="","",'Eingabe und Diagramm'!I45) ->  | L45: =IF('Eingabe und Diagramm'!L45="","",'Eingabe und Diagramm'!L45) ->  | AD45: 41 | AE45: 41 | AF45: 18.4 | AG45: 23 | AH45: 16 | AI45: 17.69207464 | AJ45: 20.05023306 | AK45: 16.51299543 | AL45: 21.22931226 | AM45: 15.33391622 | AN45: 22.40839147 | AO45: 18.87115385 | AQ45: 0 | AR45: 0 | BC45: 41 | BD45: 18.6 | BE45: 41 | BF45: 0.4090572111 | BG45: 0.5909427889 | BH45: 0.3580362569 | BI45: -155.6027232 | BJ45: -0.2797184963
C46: =IF('Eingabe und Diagramm'!C46="","",'Eingabe und Diagramm'!C46) -> 19.5 | F46: =IF('Eingabe und Diagramm'!F46="","",'Eingabe und Diagramm'!F46) -> 17.5 | I46: =IF('Eingabe und Diagramm'!I46="","",'Eingabe und Diagramm'!I46) ->  | L46: =IF('Eingabe und Diagramm'!L46="","",'Eingabe und Diagramm'!L46) ->  | AD46: 42 | AE46: 42 | AF46: 19.5 | AG46: 23 | AH46: 16 | AI46: 17.69207464 | AJ46: 20.05023306 | AK46: 16.51299543 | AL46: 21.22931226 | AM46: 15.33391622 | AN46: 22.40839147 | AO46: 18.87115385 | AQ46: 0 | AR46: 0 | BC46: 42 | BD46: 18.6 | BE46: 42 | BF46: 0.4090572111 | BG46: 0.5909427889 | BH46: 0.3901604711 | BI46: -152.3130852 | BJ46: -0.2548349569
C47: =IF('Eingabe und Diagramm'!C47="","",'Eingabe und Diagramm'!C47) -> 16.8 | F47: =IF('Eingabe und Diagramm'!F47="","",'Eingabe und Diagramm'!F47) -> 19.6 | I47: =IF('Eingabe und Diagramm'!I47="","",'Eingabe und Diagramm'!I47) ->  | L47: =IF('Eingabe und Diagramm'!L47="","",'Eingabe und Diagramm'!L47) ->  | AD47: 43 | AE47: 43 | AF47: 16.8 | AG47: 23 | AH47: 16 | AI47: 17.69207464 | AJ47: 20.05023306 | AK47: 16.51299543 | AL47: 21.22931226 | AM47: 15.33391622 | AN47: 22.40839147 | AO47: 18.87115385 | AQ47: 0 | AR47: 0 | BC47: 43 | BD47: 18.7 | BE47: 43 | BF47: 0.4422927059 | BG47: 0.5577072941 | BH47: 0.3901604711 | BI47: -149.3433464 | BJ47: -0.230108239
C48: =IF('Eingabe und Diagramm'!C48="","",'Eingabe und Diagramm'!C48) -> 17.1 | F48: =IF('Eingabe und Diagramm'!F48="","",'Eingabe und Diagramm'!F48) -> 17.6 | I48: =IF('Eingabe und Diagramm'!I48="","",'Eingabe und Diagramm'!I48) ->  | L48: =IF('Eingabe und Diagramm'!L48="","",'Eingabe und Diagramm'!L48) ->  | AD48: 44 | AE48: 44 | AF48: 17.1 | AG48: 23 | AH48: 16 | AI48: 17.69207464 | AJ48: 20.05023306 | AK48: 16.51299543 | AL48: 21.22931226 | AM48: 15.33391622 | AN48: 22.40839147 | AO48: 18.87115385 | AQ48: 0 | AR48: 0 | BC48: 44 | BD48: 18.7 | BE48: 44 | BF48: 0.4422927059 | BG48: 0.5577072941 | BH48: 0.4230531474 | BI48: -145.8155539 | BJ48: -0.2055214374
C49: =IF('Eingabe und Diagramm'!C49="","",'Eingabe und Diagramm'!C49) -> 18.9 | F49: =IF('Eingabe und Diagramm'!F49="","",'Eingabe und Diagramm'!F49) -> 20 | I49: =IF('Eingabe und Diagramm'!I49="","",'Eingabe und Diagramm'!I49) ->  | L49: =IF('Eingabe und Diagramm'!L49="","",'Eingabe und Diagramm'!L49) ->  | AD49: 45 | AE49: 45 | AF49: 18.9 | AG49: 23 | AH49: 16 | AI49: 17.69207464 | AJ49: 20.05023306 | AK49: 16.51299543 | AL49: 21.22931226 | AM49: 15.33391622 | AN49: 22.40839147 | AO49: 18.87115385 | AQ49: 0 | AR49: 0 | BC49: 45 | BD49: 18.7 | BE49: 45 | BF49: 0.4422927059 | BG49: 0.5577072941 | BH49: 0.4230531474 | BI49: -149.1676356 | BJ49: -0.1810582698
C50: =IF('Eingabe und Diagramm'!C50="","",'Eingabe und Diagramm'!C50) -> 19.7 | F50: =IF('Eingabe und Diagramm'!F50="","",'Eingabe und Diagramm'!F50) -> 19.9 | I50: =IF('Eingabe und Diagramm'!I50="","",'Eingabe und Diagramm'!I50) ->  | L50: =IF('Eingabe und Diagramm'!L50="","",'Eingabe und Diagramm'!L50) ->  | AD50: 46 | AE50: 46 | AF50: 19.7 | AG50: 23 | AH50: 16 | AI50: 17.69207464 | AJ50: 20.05023306 | AK50: 16.51299543 | AL50: 21.22931226 | AM50: 15.33391622 | AN50: 22.40839147 | AO50: 18.87115385 | AQ50: 0 | AR50: 0 | BC50: 46 | BD50: 18.7 | BE50: 46 | BF50: 0.4422927059 | BG50: 0.5577072941 | BH50: 0.4230531474 | BI50: -152.5197173 | BJ50: -0.1567029942
C51: =IF('Eingabe und Diagramm'!C51="","",'Eingabe und Diagramm'!C51) -> 19.7 | F51: =IF('Eingabe und Diagramm'!F51="","",'Eingabe und Diagramm'!F51) -> 16.9 | I51: =IF('Eingabe und Diagramm'!I51="","",'Eingabe und Diagramm'!I51) ->  | L51: =IF('Eingabe und Diagramm'!L51="","",'Eingabe und Diagramm'!L51) ->  | AD51: 47 | AE51: 47 | AF51: 19.7 | AG51: 23 | AH51: 16 | AI51: 17.69207464 | AJ51: 20.05023306 | AK51: 16.51299543 | AL51: 21.22931226 | AM51: 15.33391622 | AN51: 22.40839147 | AO51: 18.87115385 | AQ51: 0 | AR51: 0 | BC51: 47 | BD51: 18.8 | BE51: 47 | BF51: 0.4759396506 | BG51: 0.5240603494 | BH51: 0.4230531474 | BI51: -149.0531163 | BJ51: -0.132440332
C52: =IF('Eingabe und Diagramm'!C52="","",'Eingabe und Diagramm'!C52) -> 19.2 | F52: =IF('Eingabe und Diagramm'!F52="","",'Eingabe und Diagramm'!F52) -> 19.5 | I52: =IF('Eingabe und Diagramm'!I52="","",'Eingabe und Diagramm'!I52) ->  | L52: =IF('Eingabe und Diagramm'!L52="","",'Eingabe und Diagramm'!L52) ->  | AD52: 48 | AE52: 48 | AF52: 19.2 | AG52: 23 | AH52: 16 | AI52: 17.69207464 | AJ52: 20.05023306 | AK52: 16.51299543 | AL52: 21.22931226 | AM52: 15.33391622 | AN52: 22.40839147 | AO52: 18.87115385 | AQ52: 0 | AR52: 0 | BC52: 48 | BD52: 18.8 | BE52: 48 | BF52: 0.4759396506 | BG52: 0.5240603494 | BH52: 0.4564914229 | BI52: -145.0317106 | BJ52: -0.108255396
C53: =IF('Eingabe und Diagramm'!C53="","",'Eingabe und Diagramm'!C53) -> 20.6 | F53: =IF('Eingabe und Diagramm'!F53="","",'Eingabe und Diagramm'!F53) -> 20.4 | I53: =IF('Eingabe und Diagramm'!I53="","",'Eingabe und Diagramm'!I53) ->  | L53: =IF('Eingabe und Diagramm'!L53="","",'Eingabe und Diagramm'!L53) ->  | AD53: 49 | AE53: 49 | AF53: 20.6 | AG53: 23 | AH53: 16 | AI53: 17.69207464 | AJ53: 20.05023306 | AK53: 16.51299543 | AL53: 21.22931226 | AM53: 15.33391622 | AN53: 22.40839147 | AO53: 18.87115385 | AQ53: 0 | AR53: 0 | BC53: 49 | BD53: 18.8 | BE53: 49 | BF53: 0.4759396506 | BG53: 0.5240603494 | BH53: 0.4564914229 | BI53: -148.0850098 | BJ53: -0.08413362368
C54: =IF('Eingabe und Diagramm'!C54="","",'Eingabe und Diagramm'!C54) -> 20.1 | F54: =IF('Eingabe und Diagramm'!F54="","",'Eingabe und Diagramm'!F54) -> 19.1 | I54: =IF('Eingabe und Diagramm'!I54="","",'Eingabe und Diagramm'!I54) ->  | L54: =IF('Eingabe und Diagramm'!L54="","",'Eingabe und Diagramm'!L54) ->  | AD54: 50 | AE54: 50 | AF54: 20.1 | AG54: 23 | AH54: 16 | AI54: =AI53 -> 17.69207464 | AJ54: 20.05023306 | AK54: 16.51299543 | AL54: 21.22931226 | AM54: 15.33391622 | AN54: 22.40839147 | AO54: 18.87115385 | AQ54: 0 | AR54: 0 | BC54: 50 | BD54: 18.8 | BE54: 50 | BF54: 0.4759396506 | BG54: 0.5240603494 | BH54: 0.4564914229 | BI54: -151.1383089 | BJ54: -0.0600607133
C55: =IF(F5="","",F5) -> 18.8 | AD55: 51 | AE55: 51 | AF55: 18.8 | AG55: 23 | AH55: 16 | AI55: 17.69207464 | AJ55: 20.05023306 | AK55: 16.51299543 | AL55: 21.22931226 | AM55: 15.33391622 | AN55: 22.40839147 | AO55: 18.87115385 | AQ55: 0 | AR55: 0 | BC55: 51 | BD55: 18.9 | BE55: 51 | BF55: 0.5097591429 | BG55: 0.4902408571 | BH55: 0.4564914229 | BI55: -147.2582325 | BJ55: -0.03602256317
C56: =IF(F6="","",F6) -> 17.1 | AD56: 52 | AE56: 52 | AF56: 17.1 | AG56: 23 | AH56: 16 | AI56: 17.69207464 | AJ56: 20.05023306 | AK56: 16.51299543 | AL56: 21.22931226 | AM56: 15.33391622 | AN56: 22.40839147 | AO56: 18.87115385 | AQ56: 0 | AR56: 0 | BC56: 52 | BD56: 18.9 | BE56: 52 | BF56: 0.5097591429 | BG56: 0.4902408571 | BH56: 0.4902408571 | BI56: -142.8275659 | BJ56: -0.01200521306
C57: =IF(F7="","",F7) -> 18.6 | AD57: 53 | AE57: 53 | AF57: 18.6 | AG57: 23 | AH57: 16 | AI57: 17.69207464 | AJ57: 20.05023306 | AK57: 16.51299543 | AL57: 21.22931226 | AM57: 15.33391622 | AN57: 22.40839147 | AO57: 18.87115385 | AQ57: 0 | AR57: 0 | BC57: 53 | BD57: 18.9 | BE57: 53 | BF57: 0.5097591429 | BG57: 0.4902408571 | BH57: 0.4902408571 | BI57: -145.6009167 | BJ57: 0.01200521306
C58: =IF(F8="","",F8) -> 18 | AD58: 54 | AE58: 54 | AF58: 18 | AG58: 23 | AH58: 16 | AI58: 17.69207464 | AJ58: 20.05023306 | AK58: 16.51299543 | AL58: 21.22931226 | AM58: 15.33391622 | AN58: 22.40839147 | AO58: 18.87115385 | AQ58: 0 | AR58: 0 | BC58: 54 | BD58: 19 | BE58: 54 | BF58: 0.5435085771 | BG58: 0.4564914229 | BH58: 0.4902408571 | BI58: -141.5148033 | BJ58: 0.03602256317
C59: 18.7 | AD59: 55 | AE59: 55 | AF59: 18.7 | AG59: 23 | AH59: 16 | AI59: 17.69207464 | AJ59: 20.05023306 | AK59: 16.51299543 | AL59: 21.22931226 | AM59: 15.33391622 | AN59: 22.40839147 | AO59: 18.87115385 | AQ59: 0 | AR59: 0 | BC59: 55 | BD59: 19 | BE59: 55 | BF59: 0.5435085771 | BG59: 0.4564914229 | BH59: 0.5240603494 | BI59: -136.8885462 | BJ59: 0.0600607133
C60: 20.3 | AD60: 56 | AE60: 56 | AF60: 20.3 | AG60: 23 | AH60: 16 | AI60: 17.69207464 | AJ60: 20.05023306 | AK60: 16.51299543 | AL60: 21.22931226 | AM60: 15.33391622 | AN60: 22.40839147 | AO60: 18.87115385 | AQ60: 0 | AR60: 0 | BC60: 56 | BD60: 19 | BE60: 56 | BF60: 0.5435085771 | BG60: 0.4564914229 | BH60: 0.5240603494 | BI60: -139.4002626 | BJ60: 0.08413362368
C61: 18.7 | AD61: 57 | AE61: 57 | AF61: 18.7 | AG61: 23 | AH61: 16 | AI61: 17.69207464 | AJ61: 20.05023306 | AK61: 16.51299543 | AL61: 21.22931226 | AM61: 15.33391622 | AN61: 22.40839147 | AO61: 18.87115385 | AQ61: 0 | AR61: 0 | BC61: 57 | BD61: 19 | BE61: 57 | BF61: 0.5435085771 | BG61: 0.4564914229 | BH61: 0.5240603494 | BI61: -141.9119791 | BJ61: 0.108255396
C62: 18.8 | AD62: 58 | AE62: 58 | AF62: 18.8 | AG62: 23 | AH62: 16 | AI62: 17.69207464 | AJ62: 20.05023306 | AK62: 16.51299543 | AL62: 21.22931226 | AM62: 15.33391622 | AN62: 22.40839147 | AO62: 18.87115385 | AQ62: 0 | AR62: 0 | BC62: 58 | BD62: 19.1 | BE62: 58 | BF62: 0.5769468526 | BG62: 0.4230531474 | BH62: 0.5240603494 | BI62: -137.5576591 | BJ62: 0.132440332
C63: 19.4 | AD63: 59 | AE63: 59 | AF63: 19.4 | AG63: 23 | AH63: 16 | AI63: 17.69207464 | AJ63: 20.05023306 | AK63: 16.51299543 | AL63: 21.22931226 | AM63: 15.33391622 | AN63: 22.40839147 | AO63: 18.87115385 | AQ63: 0 | AR63: 0 | BC63: 59 | BD63: 19.1 | BE63: 59 | BF63: 0.5769468526 | BG63: 0.4230531474 | BH63: 0.5577072941 | BI63: -132.6693588 | BJ63: 0.1567029942
C64: 18.5 | P64: 1 | Q64: =Minimum -> 16.1 | R64: =Q64+T64 -> 16.55 | S64: =(R64+Q64)/2 -> 16.325 | T64: =Spannweite/AnzahlKlassenHistogramm -> 0.45 | U64: =FREQUENCY(xi,R64) -> 3 | V64: =$U64/Anzahl -> 0.02884615385 | W64: =U64 -> 3 | X64: =W64/Anzahl -> 0.02884615385 | Y64: =X64/T64 -> 0.0641025641 | AD64: 60 | AE64: 60 | AF64: 18.5 | AG64: 23 | AH64: 16 | AI64: 17.69207464 | AJ64: 20.05023306 | AK64: 16.51299543 | AL64: 21.22931226 | AM64: 15.33391622 | AN64: 22.40839147 | AO64: 18.87115385 | AQ64: 0 | AR64: 0 | BC64: 60 | BD64: 19.1 | BE64: 60 | BF64: 0.5769468526 | BG64: 0.4230531474 | BH64: 0.5577072941 | BI64: -134.9372111 | BJ64: 0.1810582698
C65: 18.6 | P65: 2 | Q65: =IF(AnzahlKlassenHistogramm<P65,Q64,Q64+T65+0.00000001) -> 16.55000001 | R65: =Q65+T65 -> 17.00000001 | S65: =(R65+Q65)/2 -> 16.77500001 | T65: 0.45 | U65: 7 | V65: 0.06730769231 | W65: =U65-U64 -> 4 | X65: 0.03846153846 | Y65: =X65/T65 -> 0.08547008547 | AD65: 61 | AE65: 61 | AF65: 18.6 | AG65: 23 | AH65: 16 | AI65: 17.69207464 | AJ65: 20.05023306 | AK65: 16.51299543 | AL65: 21.22931226 | AM65: 15.33391622 | AN65: 22.40839147 | AO65: 18.87115385 | AQ65: 0 | AR65: 0 | BC65: 61 | BD65: 19.1 | BE65: 61 | BF65: 0.5769468526 | BG65: 0.4230531474 | BH65: 0.5577072941 | BI65: -137.2050633 | BJ65: 0.2055214374
C66: 19.6 | P66: 3 | Q66: 17.00000002 | R66: =Q66+T66 -> 17.45000002 | S66: =(R66+Q66)/2 -> 17.22500002 | T66: 0.45 | U66: 15 | V66: 0.1442307692 | W66: =U66-U65 -> 8 | X66: 0.07692307692 | Y66: =X66/T66 -> 0.1709401709 | AD66: 62 | AE66: 62 | AF66: 19.6 | AG66: 23 | AH66: 16 | AI66: 17.69207464 | AJ66: 20.05023306 | AK66: 16.51299543 | AL66: 21.22931226 | AM66: 15.33391622 | AN66: 22.40839147 | AO66: 18.87115385 | AQ66: 0 | AR66: 0 | BC66: 62 | BD66: 19.2 | BE66: 62 | BF66: 0.6098395289 | BG66: 0.3901604711 | BH66: 0.5577072941 | BI66: -132.6530942 | BJ66: 0.230108239
C67: 18.5 | P67: 4 | Q67: 17.45000003 | R67: 17.90000003 | S67: 17.67500003 | T67: 0.45 | U67: 22 | V67: 0.2115384615 | W67: 7 | X67: 0.06730769231 | Y67: 0.1495726496 | AD67: 63 | AE67: 63 | AF67: 18.5 | AG67: 23 | AH67: 16 | AI67: 17.69207464 | AJ67: 20.05023306 | AK67: 16.51299543 | AL67: 21.22931226 | AM67: 15.33391622 | AN67: 22.40839147 | AO67: 18.87115385 | AQ67: 0 | AR67: 0 | BC67: 63 | BD67: 19.2 | BE67: 63 | BF67: 0.6098395289 | BG67: 0.3901604711 | BH67: 0.5909427889 | BI67: -127.5744367 | BJ67: 0.2548349569
C68: 20 | P68: 5 | Q68: 17.90000004 | R68: 18.35000004 | S68: 18.12500004 | T68: 0.45 | U68: 31 | V68: 0.2980769231 | W68: 9 | X68: 0.08653846154 | Y68: 0.1923076923 | AD68: 64 | AE68: 64 | AF68: 20 | AG68: 23 | AH68: 16 | AI68: 17.69207464 | AJ68: 20.05023306 | AK68: 16.51299543 | AL68: 21.22931226 | AM68: 15.33391622 | AN68: 22.40839147 | AO68: 18.87115385 | AQ68: 0 | AR68: 0 | BC68: 64 | BD68: 19.3 | BE68: 64 | BF68: 0.6419637431 | BG68: 0.3580362569 | BH68: 0.5909427889 | BI68: -123.0959593 | BJ68: 0.2797184963
C69: 17.8 | P69: 6 | Q69: 18.35000005 | R69: 18.80000005 | S69: 18.57500005 | T69: 0.45 | U69: 50 | V69: 0.4807692308 | W69: 19 | X69: 0.1826923077 | Y69: 0.405982906 | AD69: 65 | AE69: =IF((Anzahl>AD69),AD69,Anzahl) -> 65 | AF69: 17.8 | AG69: =IF(C69<>"",OGW,AG68) -> 23 | AH69: =IF(C69<>"",UGW,AH68) -> 16 | AI69: 17.69207464 | AJ69: 20.05023306 | AK69: 16.51299543 | AL69: 21.22931226 | AM69: 15.33391622 | AN69: 22.40839147 | AO69: 18.87115385 | AQ69: =IF(AND(C69<>"",C69<UGW),1,0) -> 0 | AR69: =IF(AND(C69<>"",C69>OGW),1,0) -> 0 | BC69: 65 | BD69: =IF(C69="",NA(),SMALL(xi,BE69)) -> 19.3 | BE69: 65 | BF69: =IF(C69="","",NORMSDIST((BD69-fxds)/Standardabweichung)) -> 0.6419637431 | BG69: =IF(C69="","",1-BF69) -> 0.3580362569 | BH69: =IF(C69="","",SMALL(BG,BE69)) -> 0.5909427889 | BI69: =IF(C69="","",(2*BE69-1)*(LN(BH69)+LN(BF69))) -> -125.0344783 | BJ69: =IF(C69="",NA(),NORMSINV((BE69-0.3)/(Anzahl+0.4))) -> 0.3047764768
C70: 19.8 | P70: 7 | Q70: 18.80000006 | R70: 19.25000006 | S70: 19.02500006 | T70: 0.45 | U70: 63 | V70: 0.6057692308 | W70: 13 | X70: 0.125 | Y70: 0.2777777778 | AD70: 66 | AE70: 66 | AF70: 19.8 | AG70: 23 | AH70: 16 | AI70: =AI69 -> 17.69207464 | AJ70: 20.05023306 | AK70: 16.51299543 | AL70: 21.22931226 | AM70: 15.33391622 | AN70: 22.40839147 | AO70: 18.87115385 | AQ70: 0 | AR70: 0 | BC70: 66 | BD70: 19.4 | BE70: =IF(C70="","",1+BE69) -> 66 | BF70: 0.6731127195 | BG70: 0.3268872805 | BH70: 0.6235367112 | BI70: -113.7329046 | BJ70: 0.3300273317
C71: 16.6 | P71: 8 | Q71: 19.25000007 | R71: 19.70000007 | S71: 19.47500007 | T71: 0.45 | U71: 78 | V71: 0.75 | W71: 15 | X71: 0.1442307692 | Y71: 0.3205128205 | AD71: 67 | AE71: 67 | AF71: 16.6 | AG71: 23 | AH71: 16 | AI71: 17.69207464 | AJ71: 20.05023306 | AK71: 16.51299543 | AL71: 21.22931226 | AM71: 15.33391622 | AN71: 22.40839147 | AO71: 18.87115385 | AQ71: 0 | AR71: 0 | BC71: 67 | BD71: 19.4 | BE71: 67 | BF71: 0.6731127195 | BG71: 0.3268872805 | BH71: 0.6235367112 | BI71: -115.4692849 | BJ71: 0.3554904178
C72: 19.4 | P72: 9 | Q72: 19.70000008 | R72: 20.15000008 | S72: 19.92500008 | T72: 0.45 | U72: 89 | V72: 0.8557692308 | W72: 11 | X72: 0.1057692308 | Y72: 0.235042735 | AD72: 68 | AE72: 68 | AF72: =IF(C72<>"",C72,AF71) -> 19.4 | AG72: 23 | AH72: 16 | AI72: 17.69207464 | AJ72: 20.05023306 | AK72: 16.51299543 | AL72: 21.22931226 | AM72: 15.33391622 | AN72: 22.40839147 | AO72: 18.87115385 | AQ72: 0 | AR72: 0 | BC72: 68 | BD72: 19.4 | BE72: 68 | BF72: 0.6731127195 | BG72: 0.3268872805 | BH72: 0.6235367112 | BI72: -117.2056651 | BJ72: 0.3811861383
C73: 19.3 | P73: 10 | Q73: 20.15000009 | R73: 20.60000009 | S73: 20.37500009 | T73: 0.45 | U73: 100 | V73: 0.9615384615 | W73: 11 | X73: 0.1057692308 | Y73: 0.235042735 | AD73: 69 | AE73: 69 | AF73: 19.3 | AG73: 23 | AH73: 16 | AI73: 17.69207464 | AJ73: 20.05023306 | AK73: 16.51299543 | AL73: 21.22931226 | AM73: 15.33391622 | AN73: 22.40839147 | AO73: 18.87115385 | AQ73: 0 | AR73: 0 | BC73: 69 | BD73: 19.4 | BE73: 69 | BF73: 0.6731127195 | BG73: 0.3268872805 | BH73: 0.6235367112 | BI73: -118.9420453 | BJ73: 0.407136079
C74: 20.1 | P74: 11 | Q74: 20.6000001 | R74: 21.0500001 | S74: 20.8250001 | T74: 0.45 | U74: 103 | V74: 0.9903846154 | W74: 3 | X74: 0.02884615385 | Y74: 0.0641025641 | AD74: 70 | AE74: 70 | AF74: 20.1 | AG74: 23 | AH74: 16 | AI74: 17.69207464 | AJ74: 20.05023306 | AK74: 16.51299543 | AL74: 21.22931226 | AM74: 15.33391622 | AN74: 22.40839147 | AO74: 18.87115385 | AQ74: 0 | AR74: 0 | BC74: 70 | BD74: 19.5 | BE74: 70 | BF74: 0.7030997186 | BG74: 0.2969002814 | BH74: 0.6235367112 | BI74: -114.6199819 | BJ74: 0.4333631628
C75: 20.5 | P75: 12 | Q75: 21.05000011 | R75: 21.50000011 | S75: 21.27500011 | T75: 0.45 | U75: 104 | V75: 1 | W75: 1 | X75: 0.009615384615 | Y75: 0.02136752137 | AD75: 71 | AE75: 71 | AF75: 20.5 | AG75: 23 | AH75: 16 | AI75: 17.69207464 | AJ75: 20.05023306 | AK75: 16.51299543 | AL75: 21.22931226 | AM75: 15.33391622 | AN75: 22.40839147 | AO75: 18.87115385 | AQ75: 0 | AR75: 0 | BC75: 71 | BD75: 19.5 | BE75: 71 | BF75: 0.7030997186 | BG75: 0.2969002814 | BH75: 0.6552724831 | BI75: -109.2694552 | BJ75: 0.4598918231
C76: 20 | P76: 13 | Q76: 21.05000011 | R76: 21.50000011 | S76: 21.27500011 | T76: 0.45 | U76: 104 | V76: 1 | W76: 0 | X76: 0 | Y76: 0 | AD76: 72 | AE76: 72 | AF76: 20 | AG76: 23 | AH76: 16 | AI76: 17.69207464 | AJ76: 20.05023306 | AK76: 16.51299543 | AL76: 21.22931226 | AM76: 15.33391622 | AN76: 22.40839147 | AO76: 18.87115385 | AQ76: 0 | AR76: 0 | BC76: 72 | BD76: 19.5 | BE76: 72 | BF76: 0.7030997186 | BG76: 0.2969002814 | BH76: 0.6552724831 | BI76: -110.8193765 | BJ76: 0.4867482021
C77: 20.8 | P77: 14 | Q77: 21.05000011 | R77: 21.50000011 | S77: 21.27500011 | T77: 0.45 | U77: 104 | V77: 1 | W77: 0 | X77: 0 | Y77: 0 | AD77: 73 | AE77: 73 | AF77: 20.8 | AG77: 23 | AH77: 16 | AI77: 17.69207464 | AJ77: 20.05023306 | AK77: 16.51299543 | AL77: 21.22931226 | AM77: 15.33391622 | AN77: 22.40839147 | AO77: 18.87115385 | AQ77: 0 | AR77: 0 | BC77: 73 | BD77: 19.6 | BE77: 73 | BF77: 0.7317613033 | BG77: 0.2682386967 | BH77: 0.6552724831 | BI77: -106.5757296 | BJ77: 0.5139603769
C78: 17.7 | P78: 15 | Q78: 21.05000011 | R78: 21.50000011 | S78: 21.27500011 | T78: 0.45 | U78: 104 | V78: 1 | W78: 0 | X78: 0 | Y78: 0 | AD78: 74 | AE78: 74 | AF78: 17.7 | AG78: 23 | AH78: 16 | AI78: 17.69207464 | AJ78: 20.05023306 | AK78: 16.51299543 | AL78: 21.22931226 | AM78: 15.33391622 | AN78: 22.40839147 | AO78: 18.87115385 | AQ78: 0 | AR78: 0 | BC78: 74 | BD78: 19.6 | BE78: 74 | BF78: 0.7317613033 | BG78: 0.2682386967 | BH78: 0.685951361 | BI78: -101.319671 | BJ78: 0.5415586189
C79: 18.9 | P79: 16 | Q79: 21.05000011 | R79: 21.50000011 | S79: 21.27500011 | T79: 0.45 | U79: 104 | V79: 1 | W79: 0 | X79: 0 | Y79: 0 | AD79: 75 | AE79: 75 | AF79: 18.9 | AG79: 23 | AH79: 16 | AI79: 17.69207464 | AJ79: 20.05023306 | AK79: 16.51299543 | AL79: 21.22931226 | AM79: 15.33391622 | AN79: 22.40839147 | AO79: 18.87115385 | AQ79: 0 | AR79: 0 | BC79: 75 | BD79: 19.6 | BE79: 75 | BF79: 0.7317613033 | BG79: 0.2682386967 | BH79: 0.685951361 | BI79: -102.6981699 | BJ79: 0.5695756949
C80: 18.8 | P80: 17 | Q80: 21.05000011 | R80: 21.50000011 | S80: 21.27500011 | T80: 0.45 | U80: 104 | V80: 1 | W80: 0 | X80: 0 | Y80: 0 | AD80: 76 | AE80: 76 | AF80: 18.8 | AG80: 23 | AH80: 16 | AI80: 17.69207464 | AJ80: 20.05023306 | AK80: 16.51299543 | AL80: 21.22931226 | AM80: 15.33391622 | AN80: 22.40839147 | AO80: 18.87115385 | AQ80: 0 | AR80: 0 | BC80: 76 | BD80: 19.7 | BE80: 76 | BF80: 0.7589598284 | BG80: 0.2410401716 | BH80: 0.685951361 | BI80: -98.5660029 | BJ80: 0.5980472154
C81: 16.4 | P81: 18 | Q81: 21.05000011 | R81: 21.50000011 | S81: 21.27500011 | T81: 0.45 | U81: 104 | V81: 1 | W81: 0 | X81: 0 | Y81: 0 | AD81: 77 | AE81: 77 | AF81: 16.4 | AG81: 23 | AH81: 16 | AI81: 17.69207464 | AJ81: 20.05023306 | AK81: 16.51299543 | AL81: 21.22931226 | AM81: 15.33391622 | AN81: 22.40839147 | AO81: 18.87115385 | AQ81: 0 | AR81: 0 | BC81: 77 | BD81: 19.7 | BE81: 77 | BF81: 0.7589598284 | BG81: 0.2410401716 | BH81: 0.7434539443 | BI81: -87.55499808 | BJ81: 0.627012043
C82: 18.5 | P82: 19 | Q82: 21.05000011 | R82: 21.50000011 | S82: 21.27500011 | T82: 0.45 | U82: 104 | V82: 1 | W82: 0 | X82: 0 | Y82: 0 | AD82: 78 | AE82: 78 | AF82: 18.5 | AG82: 23 | AH82: 16 | AI82: 17.69207464 | AJ82: 20.05023306 | AK82: 16.51299543 | AL82: 21.22931226 | AM82: 15.33391622 | AN82: 22.40839147 | AO82: 18.87115385 | AQ82: 0 | AR82: 0 | BC82: 78 | BD82: 19.7 | BE82: 78 | BF82: 0.7589598284 | BG82: 0.2410401716 | BH82: 0.7434539443 | BI82: -88.69950786 | BJ82: 0.6565127715
C83: 19 | P83: 20 | Q83: 21.05000011 | R83: 21.50000011 | S83: 21.27500011 | T83: 0.45 | U83: 104 | V83: 1 | W83: 0 | X83: 0 | Y83: 0 | AD83: 79 | AE83: 79 | AF83: 19 | AG83: 23 | AH83: 16 | AI83: 17.69207464 | AJ83: 20.05023306 | AK83: 16.51299543 | AL83: 21.22931226 | AM83: 15.33391622 | AN83: 22.40839147 | AO83: 18.87115385 | AQ83: 0 | AR83: 0 | BC83: 79 | BD83: 19.8 | BE83: 79 | BF83: 0.7845850997 | BG83: 0.2154149003 | BH83: 0.7434539443 | BI83: -84.63064523 | BJ83: 0.6865962936
C84: 20.6 | AD84: 80 | AE84: 80 | AF84: 20.6 | AG84: 23 | AH84: 16 | AI84: 17.69207464 | AJ84: 20.05023306 | AK84: 16.51299543 | AL84: 21.22931226 | AM84: 15.33391622 | AN84: 22.40839147 | AO84: 18.87115385 | AQ84: 0 | AR84: 0 | BC84: 80 | BD84: 19.8 | BE84: 80 | BF84: 0.7845850997 | BG84: 0.2154149003 | BH84: 0.7699986833 | BI84: -80.13070695 | BJ84: 0.7173144767
C85: 19.2 | AD85: 81 | AE85: 81 | AF85: 19.2 | AG85: 23 | AH85: 16 | AI85: 17.69207464 | AJ85: 20.05023306 | AK85: 16.51299543 | AL85: 21.22931226 | AM85: 15.33391622 | AN85: 22.40839147 | AO85: 18.87115385 | AQ85: 0 | AR85: 0 | BC85: 81 | BD85: 19.9 | BE85: 81 | BF85: 0.8085551835 | BG85: 0.1914448165 | BH85: 0.7699986833 | BI85: -76.29352437 | BJ85: 0.7487249731
C86: 17.1 | AD86: 82 | AE86: 82 | AF86: 17.1 | AG86: 23 | AH86: 16 | AI86: =AI85 -> 17.69207464 | AJ86: 20.05023306 | AK86: 16.51299543 | AL86: 21.22931226 | AM86: 15.33391622 | AN86: 22.40839147 | AO86: 18.87115385 | AQ86: 0 | AR86: 0 | BC86: 82 | BD86: 19.9 | BE86: 82 | BF86: 0.8085551835 | BG86: 0.1914448165 | BH86: 0.7699986833 | BI86: -77.24127001 | BJ86: 0.7808921994
C87: 16.3 | Q87: 1.1 | R87: =R88-(Q87*Standardabweichung) -> 11.08923106 | S87: =NORMDIST(R87,fxds,Standardabweichung,0) -> 1.176070262e-10 | V87: =OGW -> 23 | W87: =MAX(Häufigkeitsdichte)*1.05 -> 0.4262820513 | AD87: 83 | AE87: 83 | AF87: 16.3 | AG87: 23 | AH87: 16 | AI87: 17.69207464 | AJ87: 20.05023306 | AK87: 16.51299543 | AL87: 21.22931226 | AM87: 15.33391622 | AN87: 22.40839147 | AO87: 18.87115385 | AQ87: 0 | AR87: 0 | BC87: 83 | BD87: 19.9 | BE87: 83 | BF87: 0.8085551835 | BG87: 0.1914448165 | BH87: 0.7949320381 | BI87: -72.93082545 | BJ87: 0.8138885298
C88: 17.2 | Q88: 1 | R88: 12.38621819 | S88: 9.134042868e-08 | V88: =UGW -> 16 | W88: 0.4262820513 | AD88: 84 | AE88: 84 | AF88: 17.2 | AG88: 23 | AH88: 16 | AI88: 17.69207464 | AJ88: 20.05023306 | AK88: 16.51299543 | AL88: 21.22931226 | AM88: 15.33391622 | AN88: 22.40839147 | AO88: 18.87115385 | AQ88: 0 | AR88: 0 | BC88: 84 | BD88: 20 | BE88: 84 | BF88: 0.8308163848 | BG88: 0.1691836152 | BH88: 0.8181840713 | BI88: -64.46440599 | BJ88: 0.8477957612
C89: 17.9 | Q89: 0.9 | R89: 13.5652974 | S89: 1.355612157e-05 | V89: =fxds+3*Standardabweichung -> 22.40839147 | W89: 0.4262820513 | AD89: 85 | AE89: 85 | AF89: 17.9 | AG89: 23 | AH89: 16 | AI89: 17.69207464 | AJ89: 20.05023306 | AK89: 16.51299543 | AL89: 21.22931226 | AM89: 15.33391622 | AN89: 22.40839147 | AO89: 18.87115385 | AQ89: 0 | AR89: 0 | BC89: 85 | BD89: 20 | BE89: 85 | BF89: 0.8308163848 | BG89: 0.1691836152 | BH89: 0.8397128363 | BI89: -60.84705958 | BJ89: 0.8827069317
C90: 19.1 | Q90: 0.8 | R90: 14.62646869 | S90: 0.000518965923 | V90: =fxds-3*Standardabweichung -> 15.33391622 | W90: 0.4262820513 | AD90: 86 | AE90: 86 | AF90: 19.1 | AG90: 23 | AH90: 16 | AI90: 17.69207464 | AJ90: 20.05023306 | AK90: 16.51299543 | AL90: 21.22931226 | AM90: 15.33391622 | AN90: 22.40839147 | AO90: 18.87115385 | AQ90: 0 | AR90: 0 | BC90: 86 | BD90: 20 | BE90: 86 | BF90: 0.8308163848 | BG90: 0.1691836152 | BH90: 0.8397128363 | BI90: -61.56714312 | BJ90: 0.9187285975
C91: 17.3 | Q91: 0.7 | R91: 15.56973206 | S91: 0.006713248372 | V91: =fxds -> 18.87115385 | W91: 0.4262820513 | AD91: 87 | AE91: 87 | AF91: 17.3 | AG91: 23 | AH91: 16 | AI91: 17.69207464 | AJ91: 20.05023306 | AK91: 16.51299543 | AL91: 21.22931226 | AM91: 15.33391622 | AN91: 22.40839147 | AO91: 18.87115385 | AQ91: 0 | AR91: 0 | BC91: 87 | BD91: 20 | BE91: 87 | BF91: 0.8308163848 | BG91: 0.1691836152 | BH91: 0.8595032677 | BI91: -58.25725139 | BJ91: 0.9559837196
C92: 19.4 | Q92: 0.6 | R92: 16.39508751 | S92: 0.03730334284 | V92: =Sollwert -> 19 | W92: 0.4262820513 | AD92: 88 | AE92: 88 | AF92: 19.4 | AG92: 23 | AH92: 16 | AI92: 17.69207464 | AJ92: 20.05023306 | AK92: 16.51299543 | AL92: 21.22931226 | AM92: 15.33391622 | AN92: 22.40839147 | AO92: 18.87115385 | AQ92: 0 | AR92: 0 | BC92: 88 | BD92: 20.1 | BE92: 88 | BF92: 0.8513424452 | BG92: 0.1486575548 | BH92: 0.8775654144 | BI92: -51.02030643 | BJ92: 0.994615365
C93: 18.3 | Q93: 0.5 | R93: 17.10253503 | S93: 0.1098463908 | AD93: 89 | AE93: 89 | AF93: 18.3 | AG93: 23 | AH93: 16 | AI93: 17.69207464 | AJ93: 20.05023306 | AK93: 16.51299543 | AL93: 21.22931226 | AM93: 15.33391622 | AN93: 22.40839147 | AO93: 18.87115385 | AQ93: 0 | AR93: 0 | BC93: 89 | BD93: 20.1 | BE93: 89 | BF93: 0.8513424452 | BG93: 0.1486575548 | BH93: 0.8775654144 | BI93: -51.60339564 | BJ93: 1.034791521
C94: 19.3 | Q94: 0.4 | R94: 17.69207464 | S94: 0.2052200756 | AD94: 90 | AE94: 90 | AF94: 19.3 | AG94: 23 | AH94: 16 | AI94: 17.69207464 | AJ94: 20.05023306 | AK94: 16.51299543 | AL94: 21.22931226 | AM94: 15.33391622 | AN94: 22.40839147 | AO94: 18.87115385 | AQ94: 0 | AR94: 0 | BC94: 90 | BD94: 20.2 | BE94: 90 | BF94: 0.8701330418 | BG94: 0.1298669582 | BH94: 0.9086563182 | BI94: -42.04665276 | BJ94: 1.07671145
C95: 17.2 | Q95: 0.3 | R95: 18.16370632 | S95: 0.282614264 | AD95: 91 | AE95: 91 | AF95: 17.2 | AG95: 23 | AH95: 16 | AI95: 17.69207464 | AJ95: 20.05023306 | AK95: 16.51299543 | AL95: 21.22931226 | AM95: 15.33391622 | AN95: 22.40839147 | AO95: 18.87115385 | AQ95: 0 | AR95: 0 | BC95: 91 | BD95: 20.3 | BE95: 91 | BF95: 0.8872116904 | BG95: 0.1127883096 | BH95: 0.9086563182 | BI95: -38.99826188 | BJ95: 1.120614225
C96: 17.5 | Q96: 0.2 | R96: 18.51743008 | S96: 0.3234624209 | AD96: 92 | AE96: 92 | AF96: 17.5 | AG96: 23 | AH96: 16 | AI96: 17.69207464 | AJ96: 20.05023306 | AK96: 16.51299543 | AL96: 21.22931226 | AM96: 15.33391622 | AN96: 22.40839147 | AO96: 18.87115385 | AQ96: 0 | AR96: 0 | BC96: 92 | BD96: 20.4 | BE96: 92 | BF96: 0.9026231722 | BG96: 0.09737682784 | BH96: 0.9086563182 | BI96: -36.27763879 | BJ96: 1.166790414
C97: 19.6 | Q97: 0.1 | R97: 18.75324593 | S97: 0.3366631727 | AD97: 93 | AE97: 93 | AF97: 19.6 | AG97: 23 | AH97: 16 | AI97: 17.69207464 | AJ97: 20.05023306 | AK97: 16.51299543 | AL97: 21.22931226 | AM97: 15.33391622 | AN97: 22.40839147 | AO97: 18.87115385 | AQ97: 0 | AR97: 0 | BC97: 93 | BD97: 20.4 | BE97: 93 | BF97: 0.9026231722 | BG97: 0.09737682784 | BH97: 0.9218079446 | BI97: -34.0156724 | BJ97: 1.215598434
C98: 17.6 | Q98: 0 | R98: =fxds -> 18.87115385 | S98: 0.3383507039 | AD98: 94 | AE98: 94 | AF98: 17.6 | AG98: 23 | AH98: 16 | AI98: 17.69207464 | AJ98: 20.05023306 | AK98: 16.51299543 | AL98: 21.22931226 | AM98: 15.33391622 | AN98: 22.40839147 | AO98: 18.87115385 | AQ98: 0 | AR98: 0 | BC98: 94 | BD98: 20.4 | BE98: 94 | BF98: 0.9026231722 | BG98: 0.09737682784 | BH98: 0.9218079446 | BI98: -34.3834094 | BJ98: 1.267488025
C99: 20 | Q99: 0.1 | R99: =R98+(Q99*Standardabweichung) -> 18.98906177 | S99: 0.3366631727 | AD99: 95 | AE99: 95 | AF99: 20 | AG99: 23 | AH99: 16 | AI99: 17.69207464 | AJ99: 20.05023306 | AK99: 16.51299543 | AL99: 21.22931226 | AM99: 15.33391622 | AN99: 22.40839147 | AO99: 18.87115385 | AQ99: 0 | AR99: 0 | BC99: 95 | BD99: 20.4 | BE99: 95 | BF99: 0.9026231722 | BG99: 0.09737682784 | BH99: 0.9334708141 | BI99: -32.37488744 | BJ99: 1.323034952
C100: 19.9 | Q100: 0.2 | R100: 19.22487761 | S100: 0.3234624209 | AD100: 96 | AE100: 96 | AF100: 19.9 | AG100: 23 | AH100: 16 | AI100: 17.69207464 | AJ100: 20.05023306 | AK100: 16.51299543 | AL100: 21.22931226 | AM100: 15.33391622 | AN100: 22.40839147 | AO100: 18.87115385 | AQ100: 0 | AR100: 0 | BC100: 96 | BD100: 20.5 | BE100: 96 | BF100: 0.9164306149 | BG100: 0.08356938506 | BH100: 0.9334708141 | BI100: -29.81787 | BJ100: 1.382994127
C101: 16.9 | Q101: 0.3 | R101: 19.57860137 | S101: 0.282614264 | AD101: 97 | AE101: =IF((Anzahl>AD101),AD101,Anzahl) -> 97 | AF101: 16.9 | AG101: =IF(C101<>"",OGW,AG100) -> 23 | AH101: =IF(C101<>"",UGW,AH100) -> 16 | AI101: 17.69207464 | AJ101: 20.05023306 | AK101: 16.51299543 | AL101: 21.22931226 | AM101: 15.33391622 | AN101: 22.40839147 | AO101: 18.87115385 | AQ101: =IF(AND(C101<>"",C101<UGW),1,0) -> 0 | AR101: =IF(AND(C101<>"",C101>OGW),1,0) -> 0 | BC101: 97 | BD101: =IF(C101="",NA(),SMALL(xi,BE101)) -> 20.5 | BE101: 97 | BF101: =IF(C101="","",NORMSDIST((BD101-fxds)/Standardabweichung)) -> 0.9164306149 | BG101: =IF(C101="","",1-BF101) -> 0.08356938506 | BH101: =IF(C101="","",SMALL(BG,BE101)) -> 0.9334708141 | BI101: =IF(C101="","",(2*BE101-1)*(LN(BH101)+LN(BF101))) -> -30.13009901 | BJ101: =IF(C101="",NA(),NORMSINV((BE101-0.3)/(Anzahl+0.4))) -> 1.448384388
C102: 19.5 | Q102: 0.4 | R102: 20.05023306 | S102: 0.2052200756 | AD102: 98 | AE102: 98 | AF102: 19.5 | AG102: 23 | AH102: 16 | AI102: =AI101 -> 17.69207464 | AJ102: 20.05023306 | AK102: 16.51299543 | AL102: 21.22931226 | AM102: 15.33391622 | AN102: 22.40839147 | AO102: 18.87115385 | AQ102: 0 | AR102: 0 | BC102: 98 | BD102: 20.5 | BE102: =IF(C102="","",1+BE101) -> 98 | BF102: 0.9164306149 | BG102: 0.08356938506 | BH102: 0.9527155422 | BI102: -26.46302641 | BJ102: 1.52063089
C103: 20.4 | Q103: 0.5 | R103: 20.63977266 | S103: 0.1098463908 | AD103: 99 | AE103: 99 | AF103: 20.4 | AG103: 23 | AH103: 16 | AI103: 17.69207464 | AJ103: 20.05023306 | AK103: 16.51299543 | AL103: 21.22931226 | AM103: 15.33391622 | AN103: 22.40839147 | AO103: 18.87115385 | AQ103: 0 | AR103: 0 | BC103: 99 | BD103: 20.6 | BE103: 99 | BF103: 0.9287123598 | BG103: 0.07128764024 | BH103: 0.9527155422 | BI103: -24.11183829 | BJ103: 1.601820076
C104: =IF(F54="","",F54) -> 19.1 | Q104: 0.6 | R104: 21.34722019 | S104: 0.03730334284 | AD104: 100 | AE104: 100 | AF104: 19.1 | AG104: 23 | AH104: 16 | AI104: 17.69207464 | AJ104: 20.05023306 | AK104: 16.51299543 | AL104: 21.22931226 | AM104: 15.33391622 | AN104: 22.40839147 | AO104: 18.87115385 | AQ104: 0 | AR104: 0 | BC104: 100 | BD104: 20.6 | BE104: 100 | BF104: 0.9287123598 | BG104: 0.07128764024 | BH104: 0.9605057861 | BI104: -22.7360454 | BJ104: 1.695195638
C105: =IF(I5="","",I5) -> 16.9 | Q105: 0.7 | R105: 22.17257563 | S105: 0.006713248372 | AD105: 101 | AE105: 101 | AF105: 16.9 | AG105: 23 | AH105: 16 | AI105: 17.69207464 | AJ105: 20.05023306 | AK105: 16.51299543 | AL105: 21.22931226 | AM105: 15.33391622 | AN105: 22.40839147 | AO105: 18.87115385 | AQ105: 0 | AR105: 0 | BC105: 101 | BD105: 20.8 | BE105: 101 | BF105: 0.9490688955 | BG105: 0.05093110448 | BH105: 0.9729609043 | BI105: -16.01673789 | BJ105: 1.806237651
C106: =IF(I6="","",I6) -> 19.5 | Q106: 0.8 | R106: 23.115839 | S106: 0.000518965923 | AD106: 102 | AE106: 102 | AF106: 19.5 | AG106: 23 | AH106: 16 | AI106: 17.69207464 | AJ106: 20.05023306 | AK106: 16.51299543 | AL106: 21.22931226 | AM106: 15.33391622 | AN106: 22.40839147 | AO106: 18.87115385 | AQ106: 0 | AR106: 0 | BC106: 102 | BD106: 20.9 | BE106: 102 | BF106: 0.9573477127 | BG106: 0.04265228725 | BH106: 0.9819515235 | BI106: -12.5457967 | BJ106: 1.945422591
C107: 20.4 | Q107: 0.9 | R107: 24.17701029 | S107: 1.355612157e-05 | AD107: 103 | AE107: 103 | AF107: 20.4 | AG107: 23 | AH107: 16 | AI107: 17.69207464 | AJ107: 20.05023306 | AK107: 16.51299543 | AL107: 21.22931226 | AM107: 15.33391622 | AN107: 22.40839147 | AO107: 18.87115385 | AQ107: 0 | AR107: 0 | BC107: 103 | BD107: 21 | BE107: 103 | BF107: 0.9645029981 | BG107: 0.03549700188 | BH107: 0.9853951788 | BI107: -10.42524623 | BJ107: 2.137380578
C108: 19.1 | Q108: 1 | R108: 25.3560895 | S108: 9.134042868e-08 | AD108: 104 | AE108: 104 | AF108: 19.1 | AG108: 23 | AH108: 16 | AI108: 17.69207464 | AJ108: 20.05023306 | AK108: 16.51299543 | AL108: 21.22931226 | AM108: 15.33391622 | AN108: 22.40839147 | AO108: 18.87115385 | AQ108: 0 | AR108: 0 | BC108: 104 | BD108: 21.5 | BE108: 104 | BF108: 0.9871121821 | BG108: 0.01288781791 | BH108: 0.9906200874 | BI108: -4.635923846 | BJ108: 2.472692113
Q109: 1.1 | R109: 26.65307663 | S109: 1.176070262e-10 | AD109: 105 | AE109: 104 | AF109: 19.1 | AG109: 23 | AH109: 16 | AI109: 17.69207464 | AJ109: 20.05023306 | AK109: 16.51299543 | AL109: 21.22931226 | AM109: 15.33391622 | AN109: 22.40839147 | AO109: 18.87115385 | AQ109: 0 | AR109: 0 | BC109: 105
AD110: 106 | AE110: 104 | AF110: 19.1 | AG110: 23 | AH110: 16 | AI110: 17.69207464 | AJ110: 20.05023306 | AK110: 16.51299543 | AL110: 21.22931226 | AM110: 15.33391622 | AN110: 22.40839147 | AO110: 18.87115385 | AQ110: 0 | AR110: 0 | BC110: 106
AD111: 107 | AE111: 104 | AF111: 19.1 | AG111: 23 | AH111: 16 | AI111: 17.69207464 | AJ111: 20.05023306 | AK111: 16.51299543 | AL111: 21.22931226 | AM111: 15.33391622 | AN111: 22.40839147 | AO111: 18.87115385 | AQ111: 0 | AR111: 0 | BC111: 107
AD112: 108 | AE112: 104 | AF112: 19.1 | AG112: 23 | AH112: 16 | AI112: 17.69207464 | AJ112: 20.05023306 | AK112: 16.51299543 | AL112: 21.22931226 | AM112: 15.33391622 | AN112: 22.40839147 | AO112: 18.87115385 | AQ112: 0 | AR112: 0 | BC112: 108
AD113: 109 | AE113: 104 | AF113: 19.1 | AG113: 23 | AH113: 16 | AI113: 17.69207464 | AJ113: 20.05023306 | AK113: 16.51299543 | AL113: 21.22931226 | AM113: 15.33391622 | AN113: 22.40839147 | AO113: 18.87115385 | AQ113: 0 | AR113: 0 | BC113: 109
AD114: 110 | AE114: 104 | AF114: 19.1 | AG114: 23 | AH114: 16 | AI114: 17.69207464 | AJ114: 20.05023306 | AK114: 16.51299543 | AL114: 21.22931226 | AM114: 15.33391622 | AN114: 22.40839147 | AO114: 18.87115385 | AQ114: 0 | AR114: 0 | BC114: 110
AD115: 111 | AE115: 104 | AF115: 19.1 | AG115: 23 | AH115: 16 | AI115: 17.69207464 | AJ115: 20.05023306 | AK115: 16.51299543 | AL115: 21.22931226 | AM115: 15.33391622 | AN115: 22.40839147 | AO115: 18.87115385 | AQ115: 0 | AR115: 0 | BC115: 111
AD116: 112 | AE116: 104 | AF116: 19.1 | AG116: 23 | AH116: 16 | AI116: 17.69207464 | AJ116: 20.05023306 | AK116: 16.51299543 | AL116: 21.22931226 | AM116: 15.33391622 | AN116: 22.40839147 | AO116: 18.87115385 | AQ116: 0 | AR116: 0 | BC116: 112
AD117: 113 | AE117: 104 | AF117: 19.1 | AG117: 23 | AH117: 16 | AI117: 17.69207464 | AJ117: 20.05023306 | AK117: 16.51299543 | AL117: 21.22931226 | AM117: 15.33391622 | AN117: 22.40839147 | AO117: 18.87115385 | AQ117: 0 | AR117: 0 | BC117: 113
AD118: 114 | AE118: 104 | AF118: 19.1 | AG118: 23 | AH118: 16 | AI118: =AI117 -> 17.69207464 | AJ118: 20.05023306 | AK118: 16.51299543 | AL118: 21.22931226 | AM118: 15.33391622 | AN118: 22.40839147 | AO118: 18.87115385 | AQ118: 0 | AR118: 0 | BC118: 114
AD119: 115 | AE119: 104 | AF119: 19.1 | AG119: 23 | AH119: 16 | AI119: 17.69207464 | AJ119: 20.05023306 | AK119: 16.51299543 | AL119: 21.22931226 | AM119: 15.33391622 | AN119: 22.40839147 | AO119: 18.87115385 | AQ119: 0 | AR119: 0 | BC119: 115
AD120: 116 | AE120: 104 | AF120: 19.1 | AG120: 23 | AH120: 16 | AI120: 17.69207464 | AJ120: 20.05023306 | AK120: 16.51299543 | AL120: 21.22931226 | AM120: 15.33391622 | AN120: 22.40839147 | AO120: 18.87115385 | AQ120: 0 | AR120: 0 | BC120: 116
AD121: 117 | AE121: 104 | AF121: 19.1 | AG121: 23 | AH121: 16 | AI121: 17.69207464 | AJ121: 20.05023306 | AK121: 16.51299543 | AL121: 21.22931226 | AM121: 15.33391622 | AN121: 22.40839147 | AO121: 18.87115385 | AQ121: 0 | AR121: 0 | BC121: 117
AD122: 118 | AE122: 104 | AF122: 19.1 | AG122: 23 | AH122: 16 | AI122: 17.69207464 | AJ122: 20.05023306 | AK122: 16.51299543 | AL122: 21.22931226 | AM122: 15.33391622 | AN122: 22.40839147 | AO122: 18.87115385 | AQ122: 0 | AR122: 0 | BC122: 118
AD123: 119 | AE123: 104 | AF123: 19.1 | AG123: 23 | AH123: 16 | AI123: 17.69207464 | AJ123: 20.05023306 | AK123: 16.51299543 | AL123: 21.22931226 | AM123: 15.33391622 | AN123: 22.40839147 | AO123: 18.87115385 | AQ123: 0 | AR123: 0 | BC123: 119
AD124: 120 | AE124: 104 | AF124: 19.1 | AG124: 23 | AH124: 16 | AI124: 17.69207464 | AJ124: 20.05023306 | AK124: 16.51299543 | AL124: 21.22931226 | AM124: 15.33391622 | AN124: 22.40839147 | AO124: 18.87115385 | AQ124: 0 | AR124: 0 | BC124: 120
AD125: 121 | AE125: 104 | AF125: 19.1 | AG125: 23 | AH125: 16 | AI125: 17.69207464 | AJ125: 20.05023306 | AK125: 16.51299543 | AL125: 21.22931226 | AM125: 15.33391622 | AN125: 22.40839147 | AO125: 18.87115385 | AQ125: 0 | AR125: 0 | BC125: 121
AD126: 122 | AE126: 104 | AF126: 19.1 | AG126: 23 | AH126: 16 | AI126: 17.69207464 | AJ126: 20.05023306 | AK126: 16.51299543 | AL126: 21.22931226 | AM126: 15.33391622 | AN126: 22.40839147 | AO126: 18.87115385 | AQ126: 0 | AR126: 0 | BC126: 122
AD127: 123 | AE127: 104 | AF127: 19.1 | AG127: 23 | AH127: 16 | AI127: 17.69207464 | AJ127: 20.05023306 | AK127: 16.51299543 | AL127: 21.22931226 | AM127: 15.33391622 | AN127: 22.40839147 | AO127: 18.87115385 | AQ127: 0 | AR127: 0 | BC127: 123
AD128: 124 | AE128: 104 | AF128: 19.1 | AG128: 23 | AH128: 16 | AI128: 17.69207464 | AJ128: 20.05023306 | AK128: 16.51299543 | AL128: 21.22931226 | AM128: 15.33391622 | AN128: 22.40839147 | AO128: 18.87115385 | AQ128: 0 | AR128: 0 | BC128: 124
AD129: 125 | AE129: 104 | AF129: 19.1 | AG129: 23 | AH129: 16 | AI129: 17.69207464 | AJ129: 20.05023306 | AK129: 16.51299543 | AL129: 21.22931226 | AM129: 15.33391622 | AN129: 22.40839147 | AO129: 18.87115385 | AQ129: 0 | AR129: 0 | BC129: 125
AD130: 126 | AE130: 104 | AF130: 19.1 | AG130: 23 | AH130: 16 | AI130: 17.69207464 | AJ130: 20.05023306 | AK130: 16.51299543 | AL130: 21.22931226 | AM130: 15.33391622 | AN130: 22.40839147 | AO130: 18.87115385 | AQ130: 0 | AR130: 0 | BC130: 126
AD131: 127 | AE131: 104 | AF131: 19.1 | AG131: 23 | AH131: 16 | AI131: 17.69207464 | AJ131: 20.05023306 | AK131: 16.51299543 | AL131: 21.22931226 | AM131: 15.33391622 | AN131: 22.40839147 | AO131: 18.87115385 | AQ131: 0 | AR131: 0 | BC131: 127
AD132: 128 | AE132: 104 | AF132: 19.1 | AG132: 23 | AH132: 16 | AI132: 17.69207464 | AJ132: 20.05023306 | AK132: 16.51299543 | AL132: 21.22931226 | AM132: 15.33391622 | AN132: 22.40839147 | AO132: 18.87115385 | AQ132: 0 | AR132: 0 | BC132: 128
AD133: 129 | AE133: =IF((Anzahl>AD133),AD133,Anzahl) -> 104 | AF133: 19.1 | AG133: =IF(C133<>"",OGW,AG132) -> 23 | AH133: =IF(C133<>"",UGW,AH132) -> 16 | AI133: 17.69207464 | AJ133: 20.05023306 | AK133: 16.51299543 | AL133: 21.22931226 | AM133: 15.33391622 | AN133: 22.40839147 | AO133: 18.87115385 | AQ133: =IF(AND(C133<>"",C133<UGW),1,0) -> 0 | AR133: =IF(AND(C133<>"",C133>OGW),1,0) -> 0 | BC133: 129 | BD133: =IF(C133="",NA(),SMALL(xi,BE133)) ->  | BF133: =IF(C133="","",NORMSDIST((BD133-fxds)/Standardabweichung)) ->  | BG133: =IF(C133="","",1-BF133) ->  | BH133: =IF(C133="","",SMALL(BG,BE133)) ->  | BI133: =IF(C133="","",(2*BE133-1)*(LN(BH133)+LN(BF133))) ->  | BJ133: =IF(C133="",NA(),NORMSINV((BE133-0.3)/(Anzahl+0.4))) -> 
AD134: 130 | AE134: 104 | AF134: 19.1 | AG134: 23 | AH134: 16 | AI134: =AI133 -> 17.69207464 | AJ134: 20.05023306 | AK134: 16.51299543 | AL134: 21.22931226 | AM134: 15.33391622 | AN134: 22.40839147 | AO134: 18.87115385 | AQ134: 0 | AR134: 0 | BC134: 130 | BE134: =IF(C134="","",1+BE133) -> 
AD135: 131 | AE135: 104 | AF135: 19.1 | AG135: 23 | AH135: 16 | AI135: 17.69207464 | AJ135: 20.05023306 | AK135: 16.51299543 | AL135: 21.22931226 | AM135: 15.33391622 | AN135: 22.40839147 | AO135: 18.87115385 | AQ135: 0 | AR135: 0 | BC135: 131
AD136: 132 | AE136: 104 | AF136: =IF(C136<>"",C136,AF135) -> 19.1 | AG136: 23 | AH136: 16 | AI136: 17.69207464 | AJ136: 20.05023306 | AK136: 16.51299543 | AL136: 21.22931226 | AM136: 15.33391622 | AN136: 22.40839147 | AO136: 18.87115385 | AQ136: 0 | AR136: 0 | BC136: 132
AD137: 133 | AE137: 104 | AF137: 19.1 | AG137: 23 | AH137: 16 | AI137: 17.69207464 | AJ137: 20.05023306 | AK137: 16.51299543 | AL137: 21.22931226 | AM137: 15.33391622 | AN137: 22.40839147 | AO137: 18.87115385 | AQ137: 0 | AR137: 0 | BC137: 133
AD138: 134 | AE138: 104 | AF138: 19.1 | AG138: 23 | AH138: 16 | AI138: 17.69207464 | AJ138: 20.05023306 | AK138: 16.51299543 | AL138: 21.22931226 | AM138: 15.33391622 | AN138: 22.40839147 | AO138: 18.87115385 | AQ138: 0 | AR138: 0 | BC138: 134
AD139: 135 | AE139: 104 | AF139: 19.1 | AG139: 23 | AH139: 16 | AI139: 17.69207464 | AJ139: 20.05023306 | AK139: 16.51299543 | AL139: 21.22931226 | AM139: 15.33391622 | AN139: 22.40839147 | AO139: 18.87115385 | AQ139: 0 | AR139: 0 | BC139: 135
AD140: 136 | AE140: 104 | AF140: 19.1 | AG140: 23 | AH140: 16 | AI140: 17.69207464 | AJ140: 20.05023306 | AK140: 16.51299543 | AL140: 21.22931226 | AM140: 15.33391622 | AN140: 22.40839147 | AO140: 18.87115385 | AQ140: 0 | AR140: 0 | BC140: 136
AD141: 137 | AE141: 104 | AF141: 19.1 | AG141: 23 | AH141: 16 | AI141: 17.69207464 | AJ141: 20.05023306 | AK141: 16.51299543 | AL141: 21.22931226 | AM141: 15.33391622 | AN141: 22.40839147 | AO141: 18.87115385 | AQ141: 0 | AR141: 0 | BC141: 137
AD142: 138 | AE142: 104 | AF142: 19.1 | AG142: 23 | AH142: 16 | AI142: 17.69207464 | AJ142: 20.05023306 | AK142: 16.51299543 | AL142: 21.22931226 | AM142: 15.33391622 | AN142: 22.40839147 | AO142: 18.87115385 | AQ142: 0 | AR142: 0 | BC142: 138
AD143: 139 | AE143: 104 | AF143: 19.1 | AG143: 23 | AH143: 16 | AI143: 17.69207464 | AJ143: 20.05023306 | AK143: 16.51299543 | AL143: 21.22931226 | AM143: 15.33391622 | AN143: 22.40839147 | AO143: 18.87115385 | AQ143: 0 | AR143: 0 | BC143: 139
AD144: 140 | AE144: 104 | AF144: 19.1 | AG144: 23 | AH144: 16 | AI144: 17.69207464 | AJ144: 20.05023306 | AK144: 16.51299543 | AL144: 21.22931226 | AM144: 15.33391622 | AN144: 22.40839147 | AO144: 18.87115385 | AQ144: 0 | AR144: 0 | BC144: 140
AD145: 141 | AE145: 104 | AF145: 19.1 | AG145: 23 | AH145: 16 | AI145: 17.69207464 | AJ145: 20.05023306 | AK145: 16.51299543 | AL145: 21.22931226 | AM145: 15.33391622 | AN145: 22.40839147 | AO145: 18.87115385 | AQ145: 0 | AR145: 0 | BC145: 141
AD146: 142 | AE146: 104 | AF146: 19.1 | AG146: 23 | AH146: 16 | AI146: 17.69207464 | AJ146: 20.05023306 | AK146: 16.51299543 | AL146: 21.22931226 | AM146: 15.33391622 | AN146: 22.40839147 | AO146: 18.87115385 | AQ146: 0 | AR146: 0 | BC146: 142
AD147: 143 | AE147: 104 | AF147: 19.1 | AG147: 23 | AH147: 16 | AI147: 17.69207464 | AJ147: 20.05023306 | AK147: 16.51299543 | AL147: 21.22931226 | AM147: 15.33391622 | AN147: 22.40839147 | AO147: 18.87115385 | AQ147: 0 | AR147: 0 | BC147: 143
AD148: 144 | AE148: 104 | AF148: 19.1 | AG148: 23 | AH148: 16 | AI148: 17.69207464 | AJ148: 20.05023306 | AK148: 16.51299543 | AL148: 21.22931226 | AM148: 15.33391622 | AN148: 22.40839147 | AO148: 18.87115385 | AQ148: 0 | AR148: 0 | BC148: 144
AD149: 145 | AE149: 104 | AF149: 19.1 | AG149: 23 | AH149: 16 | AI149: 17.69207464 | AJ149: 20.05023306 | AK149: 16.51299543 | AL149: 21.22931226 | AM149: 15.33391622 | AN149: 22.40839147 | AO149: 18.87115385 | AQ149: 0 | AR149: 0 | BC149: 145
AD150: 146 | AE150: 104 | AF150: 19.1 | AG150: 23 | AH150: 16 | AI150: =AI149 -> 17.69207464 | AJ150: 20.05023306 | AK150: 16.51299543 | AL150: 21.22931226 | AM150: 15.33391622 | AN150: 22.40839147 | AO150: 18.87115385 | AQ150: 0 | AR150: 0 | BC150: 146
AD151: 147 | AE151: 104 | AF151: 19.1 | AG151: 23 | AH151: 16 | AI151: 17.69207464 | AJ151: 20.05023306 | AK151: 16.51299543 | AL151: 21.22931226 | AM151: 15.33391622 | AN151: 22.40839147 | AO151: 18.87115385 | AQ151: 0 | AR151: 0 | BC151: 147
AD152: 148 | AE152: 104 | AF152: 19.1 | AG152: 23 | AH152: 16 | AI152: 17.69207464 | AJ152: 20.05023306 | AK152: 16.51299543 | AL152: 21.22931226 | AM152: 15.33391622 | AN152: 22.40839147 | AO152: 18.87115385 | AQ152: 0 | AR152: 0 | BC152: 148
AD153: 149 | AE153: 104 | AF153: 19.1 | AG153: 23 | AH153: 16 | AI153: 17.69207464 | AJ153: 20.05023306 | AK153: 16.51299543 | AL153: 21.22931226 | AM153: 15.33391622 | AN153: 22.40839147 | AO153: 18.87115385 | AQ153: 0 | AR153: 0 | BC153: 149
AD154: 150 | AE154: 104 | AF154: 19.1 | AG154: 23 | AH154: 16 | AI154: 17.69207464 | AJ154: 20.05023306 | AK154: 16.51299543 | AL154: 21.22931226 | AM154: 15.33391622 | AN154: 22.40839147 | AO154: 18.87115385 | AQ154: 0 | AR154: 0 | BC154: 150
C155: =IF(L5="","",L5) ->  | AD155: 151 | AE155: 104 | AF155: 19.1 | AG155: 23 | AH155: 16 | AI155: 17.69207464 | AJ155: 20.05023306 | AK155: 16.51299543 | AL155: 21.22931226 | AM155: 15.33391622 | AN155: 22.40839147 | AO155: 18.87115385 | AQ155: 0 | AR155: 0 | BC155: 151
C156: =IF(L6="","",L6) ->  | AD156: 152 | AE156: 104 | AF156: 19.1 | AG156: 23 | AH156: 16 | AI156: 17.69207464 | AJ156: 20.05023306 | AK156: 16.51299543 | AL156: 21.22931226 | AM156: 15.33391622 | AN156: 22.40839147 | AO156: 18.87115385 | AQ156: 0 | AR156: 0 | BC156: 152
AD157: 153 | AE157: 104 | AF157: 19.1 | AG157: 23 | AH157: 16 | AI157: 17.69207464 | AJ157: 20.05023306 | AK157: 16.51299543 | AL157: 21.22931226 | AM157: 15.33391622 | AN157: 22.40839147 | AO157: 18.87115385 | AQ157: 0 | AR157: 0 | BC157: 153
AD158: 154 | AE158: 104 | AF158: 19.1 | AG158: 23 | AH158: 16 | AI158: 17.69207464 | AJ158: 20.05023306 | AK158: 16.51299543 | AL158: 21.22931226 | AM158: 15.33391622 | AN158: 22.40839147 | AO158: 18.87115385 | AQ158: 0 | AR158: 0 | BC158: 154
AD159: 155 | AE159: 104 | AF159: 19.1 | AG159: 23 | AH159: 16 | AI159: 17.69207464 | AJ159: 20.05023306 | AK159: 16.51299543 | AL159: 21.22931226 | AM159: 15.33391622 | AN159: 22.40839147 | AO159: 18.87115385 | AQ159: 0 | AR159: 0 | BC159: 155
AD160: 156 | AE160: 104 | AF160: 19.1 | AG160: 23 | AH160: 16 | AI160: 17.69207464 | AJ160: 20.05023306 | AK160: 16.51299543 | AL160: 21.22931226 | AM160: 15.33391622 | AN160: 22.40839147 | AO160: 18.87115385 | AQ160: 0 | AR160: 0 | BC160: 156
AD161: 157 | AE161: 104 | AF161: 19.1 | AG161: 23 | AH161: 16 | AI161: 17.69207464 | AJ161: 20.05023306 | AK161: 16.51299543 | AL161: 21.22931226 | AM161: 15.33391622 | AN161: 22.40839147 | AO161: 18.87115385 | AQ161: 0 | AR161: 0 | BC161: 157
AD162: 158 | AE162: 104 | AF162: 19.1 | AG162: 23 | AH162: 16 | AI162: 17.69207464 | AJ162: 20.05023306 | AK162: 16.51299543 | AL162: 21.22931226 | AM162: 15.33391622 | AN162: 22.40839147 | AO162: 18.87115385 | AQ162: 0 | AR162: 0 | BC162: 158
AD163: 159 | AE163: 104 | AF163: 19.1 | AG163: 23 | AH163: 16 | AI163: 17.69207464 | AJ163: 20.05023306 | AK163: 16.51299543 | AL163: 21.22931226 | AM163: 15.33391622 | AN163: 22.40839147 | AO163: 18.87115385 | AQ163: 0 | AR163: 0 | BC163: 159
AD164: 160 | AE164: 104 | AF164: 19.1 | AG164: 23 | AH164: 16 | AI164: 17.69207464 | AJ164: 20.05023306 | AK164: 16.51299543 | AL164: 21.22931226 | AM164: 15.33391622 | AN164: 22.40839147 | AO164: 18.87115385 | AQ164: 0 | AR164: 0 | BC164: 160
AD165: 161 | AE165: =IF((Anzahl>AD165),AD165,Anzahl) -> 104 | AF165: 19.1 | AG165: =IF(C165<>"",OGW,AG164) -> 23 | AH165: =IF(C165<>"",UGW,AH164) -> 16 | AI165: 17.69207464 | AJ165: 20.05023306 | AK165: 16.51299543 | AL165: 21.22931226 | AM165: 15.33391622 | AN165: 22.40839147 | AO165: 18.87115385 | AQ165: =IF(AND(C165<>"",C165<UGW),1,0) -> 0 | AR165: =IF(AND(C165<>"",C165>OGW),1,0) -> 0 | BC165: 161 | BD165: =IF(C165="",NA(),SMALL(xi,BE165)) ->  | BF165: =IF(C165="","",NORMSDIST((BD165-fxds)/Standardabweichung)) ->  | BG165: =IF(C165="","",1-BF165) ->  | BH165: =IF(C165="","",SMALL(BG,BE165)) ->  | BI165: =IF(C165="","",(2*BE165-1)*(LN(BH165)+LN(BF165))) ->  | BJ165: =IF(C165="",NA(),NORMSINV((BE165-0.3)/(Anzahl+0.4))) -> 
AD166: 162 | AE166: 104 | AF166: 19.1 | AG166: 23 | AH166: 16 | AI166: =AI165 -> 17.69207464 | AJ166: 20.05023306 | AK166: 16.51299543 | AL166: 21.22931226 | AM166: 15.33391622 | AN166: 22.40839147 | AO166: 18.87115385 | AQ166: 0 | AR166: 0 | BC166: 162 | BE166: =IF(C166="","",1+BE165) -> 
AD167: 163 | AE167: 104 | AF167: 19.1 | AG167: 23 | AH167: 16 | AI167: 17.69207464 | AJ167: 20.05023306 | AK167: 16.51299543 | AL167: 21.22931226 | AM167: 15.33391622 | AN167: 22.40839147 | AO167: 18.87115385 | AQ167: 0 | AR167: 0 | BC167: 163
AD168: 164 | AE168: 104 | AF168: 19.1 | AG168: 23 | AH168: 16 | AI168: 17.69207464 | AJ168: 20.05023306 | AK168: 16.51299543 | AL168: 21.22931226 | AM168: 15.33391622 | AN168: 22.40839147 | AO168: 18.87115385 | AQ168: 0 | AR168: 0 | BC168: 164
AD169: 165 | AE169: 104 | AF169: 19.1 | AG169: 23 | AH169: 16 | AI169: 17.69207464 | AJ169: 20.05023306 | AK169: 16.51299543 | AL169: 21.22931226 | AM169: 15.33391622 | AN169: 22.40839147 | AO169: 18.87115385 | AQ169: 0 | AR169: 0 | BC169: 165
AD170: 166 | AE170: 104 | AF170: 19.1 | AG170: 23 | AH170: 16 | AI170: 17.69207464 | AJ170: 20.05023306 | AK170: 16.51299543 | AL170: 21.22931226 | AM170: 15.33391622 | AN170: 22.40839147 | AO170: 18.87115385 | AQ170: 0 | AR170: 0 | BC170: 166
AD171: 167 | AE171: 104 | AF171: 19.1 | AG171: 23 | AH171: 16 | AI171: 17.69207464 | AJ171: 20.05023306 | AK171: 16.51299543 | AL171: 21.22931226 | AM171: 15.33391622 | AN171: 22.40839147 | AO171: 18.87115385 | AQ171: 0 | AR171: 0 | BC171: 167
AD172: 168 | AE172: 104 | AF172: 19.1 | AG172: 23 | AH172: 16 | AI172: 17.69207464 | AJ172: 20.05023306 | AK172: 16.51299543 | AL172: 21.22931226 | AM172: 15.33391622 | AN172: 22.40839147 | AO172: 18.87115385 | AQ172: 0 | AR172: 0 | BC172: 168
AD173: 169 | AE173: 104 | AF173: 19.1 | AG173: 23 | AH173: 16 | AI173: 17.69207464 | AJ173: 20.05023306 | AK173: 16.51299543 | AL173: 21.22931226 | AM173: 15.33391622 | AN173: 22.40839147 | AO173: 18.87115385 | AQ173: 0 | AR173: 0 | BC173: 169
AD174: 170 | AE174: 104 | AF174: 19.1 | AG174: 23 | AH174: 16 | AI174: 17.69207464 | AJ174: 20.05023306 | AK174: 16.51299543 | AL174: 21.22931226 | AM174: 15.33391622 | AN174: 22.40839147 | AO174: 18.87115385 | AQ174: 0 | AR174: 0 | BC174: 170
AD175: 171 | AE175: 104 | AF175: 19.1 | AG175: 23 | AH175: 16 | AI175: 17.69207464 | AJ175: 20.05023306 | AK175: 16.51299543 | AL175: 21.22931226 | AM175: 15.33391622 | AN175: 22.40839147 | AO175: 18.87115385 | AQ175: 0 | AR175: 0 | BC175: 171
AD176: 172 | AE176: 104 | AF176: 19.1 | AG176: 23 | AH176: 16 | AI176: 17.69207464 | AJ176: 20.05023306 | AK176: 16.51299543 | AL176: 21.22931226 | AM176: 15.33391622 | AN176: 22.40839147 | AO176: 18.87115385 | AQ176: 0 | AR176: 0 | BC176: 172
AD177: 173 | AE177: 104 | AF177: 19.1 | AG177: 23 | AH177: 16 | AI177: 17.69207464 | AJ177: 20.05023306 | AK177: 16.51299543 | AL177: 21.22931226 | AM177: 15.33391622 | AN177: 22.40839147 | AO177: 18.87115385 | AQ177: 0 | AR177: 0 | BC177: 173
AD178: 174 | AE178: 104 | AF178: 19.1 | AG178: 23 | AH178: 16 | AI178: 17.69207464 | AJ178: 20.05023306 | AK178: 16.51299543 | AL178: 21.22931226 | AM178: 15.33391622 | AN178: 22.40839147 | AO178: 18.87115385 | AQ178: 0 | AR178: 0 | BC178: 174
AD179: 175 | AE179: 104 | AF179: 19.1 | AG179: 23 | AH179: 16 | AI179: 17.69207464 | AJ179: 20.05023306 | AK179: 16.51299543 | AL179: 21.22931226 | AM179: 15.33391622 | AN179: 22.40839147 | AO179: 18.87115385 | AQ179: 0 | AR179: 0 | BC179: 175
AD180: 176 | AE180: 104 | AF180: 19.1 | AG180: 23 | AH180: 16 | AI180: 17.69207464 | AJ180: 20.05023306 | AK180: 16.51299543 | AL180: 21.22931226 | AM180: 15.33391622 | AN180: 22.40839147 | AO180: 18.87115385 | AQ180: 0 | AR180: 0 | BC180: 176
AD181: 177 | AE181: 104 | AF181: 19.1 | AG181: 23 | AH181: 16 | AI181: 17.69207464 | AJ181: 20.05023306 | AK181: 16.51299543 | AL181: 21.22931226 | AM181: 15.33391622 | AN181: 22.40839147 | AO181: 18.87115385 | AQ181: 0 | AR181: 0 | BC181: 177
AD182: 178 | AE182: 104 | AF182: 19.1 | AG182: 23 | AH182: 16 | AI182: =AI181 -> 17.69207464 | AJ182: 20.05023306 | AK182: 16.51299543 | AL182: 21.22931226 | AM182: 15.33391622 | AN182: 22.40839147 | AO182: 18.87115385 | AQ182: 0 | AR182: 0 | BC182: 178
AD183: 179 | AE183: 104 | AF183: 19.1 | AG183: 23 | AH183: 16 | AI183: 17.69207464 | AJ183: 20.05023306 | AK183: 16.51299543 | AL183: 21.22931226 | AM183: 15.33391622 | AN183: 22.40839147 | AO183: 18.87115385 | AQ183: 0 | AR183: 0 | BC183: 179
AD184: 180 | AE184: 104 | AF184: 19.1 | AG184: 23 | AH184: 16 | AI184: 17.69207464 | AJ184: 20.05023306 | AK184: 16.51299543 | AL184: 21.22931226 | AM184: 15.33391622 | AN184: 22.40839147 | AO184: 18.87115385 | AQ184: 0 | AR184: 0 | BC184: 180
AD185: 181 | AE185: 104 | AF185: 19.1 | AG185: 23 | AH185: 16 | AI185: 17.69207464 | AJ185: 20.05023306 | AK185: 16.51299543 | AL185: 21.22931226 | AM185: 15.33391622 | AN185: 22.40839147 | AO185: 18.87115385 | AQ185: 0 | AR185: 0 | BC185: 181
AD186: 182 | AE186: 104 | AF186: 19.1 | AG186: 23 | AH186: 16 | AI186: 17.69207464 | AJ186: 20.05023306 | AK186: 16.51299543 | AL186: 21.22931226 | AM186: 15.33391622 | AN186: 22.40839147 | AO186: 18.87115385 | AQ186: 0 | AR186: 0 | BC186: 182
AD187: 183 | AE187: 104 | AF187: 19.1 | AG187: 23 | AH187: 16 | AI187: 17.69207464 | AJ187: 20.05023306 | AK187: 16.51299543 | AL187: 21.22931226 | AM187: 15.33391622 | AN187: 22.40839147 | AO187: 18.87115385 | AQ187: 0 | AR187: 0 | BC187: 183
AD188: 184 | AE188: 104 | AF188: 19.1 | AG188: 23 | AH188: 16 | AI188: 17.69207464 | AJ188: 20.05023306 | AK188: 16.51299543 | AL188: 21.22931226 | AM188: 15.33391622 | AN188: 22.40839147 | AO188: 18.87115385 | AQ188: 0 | AR188: 0 | BC188: 184
AD189: 185 | AE189: 104 | AF189: 19.1 | AG189: 23 | AH189: 16 | AI189: 17.69207464 | AJ189: 20.05023306 | AK189: 16.51299543 | AL189: 21.22931226 | AM189: 15.33391622 | AN189: 22.40839147 | AO189: 18.87115385 | AQ189: 0 | AR189: 0 | BC189: 185
AD190: 186 | AE190: 104 | AF190: 19.1 | AG190: 23 | AH190: 16 | AI190: 17.69207464 | AJ190: 20.05023306 | AK190: 16.51299543 | AL190: 21.22931226 | AM190: 15.33391622 | AN190: 22.40839147 | AO190: 18.87115385 | AQ190: 0 | AR190: 0 | BC190: 186
AD191: 187 | AE191: 104 | AF191: 19.1 | AG191: 23 | AH191: 16 | AI191: 17.69207464 | AJ191: 20.05023306 | AK191: 16.51299543 | AL191: 21.22931226 | AM191: 15.33391622 | AN191: 22.40839147 | AO191: 18.87115385 | AQ191: 0 | AR191: 0 | BC191: 187
AD192: 188 | AE192: 104 | AF192: 19.1 | AG192: 23 | AH192: 16 | AI192: 17.69207464 | AJ192: 20.05023306 | AK192: 16.51299543 | AL192: 21.22931226 | AM192: 15.33391622 | AN192: 22.40839147 | AO192: 18.87115385 | AQ192: 0 | AR192: 0 | BC192: 188
AD193: 189 | AE193: 104 | AF193: 19.1 | AG193: 23 | AH193: 16 | AI193: 17.69207464 | AJ193: 20.05023306 | AK193: 16.51299543 | AL193: 21.22931226 | AM193: 15.33391622 | AN193: 22.40839147 | AO193: 18.87115385 | AQ193: 0 | AR193: 0 | BC193: 189
AD194: 190 | AE194: 104 | AF194: 19.1 | AG194: 23 | AH194: 16 | AI194: 17.69207464 | AJ194: 20.05023306 | AK194: 16.51299543 | AL194: 21.22931226 | AM194: 15.33391622 | AN194: 22.40839147 | AO194: 18.87115385 | AQ194: 0 | AR194: 0 | BC194: 190
AD195: 191 | AE195: 104 | AF195: 19.1 | AG195: 23 | AH195: 16 | AI195: 17.69207464 | AJ195: 20.05023306 | AK195: 16.51299543 | AL195: 21.22931226 | AM195: 15.33391622 | AN195: 22.40839147 | AO195: 18.87115385 | AQ195: 0 | AR195: 0 | BC195: 191
AD196: 192 | AE196: 104 | AF196: 19.1 | AG196: 23 | AH196: 16 | AI196: 17.69207464 | AJ196: 20.05023306 | AK196: 16.51299543 | AL196: 21.22931226 | AM196: 15.33391622 | AN196: 22.40839147 | AO196: 18.87115385 | AQ196: 0 | AR196: 0 | BC196: 192
AD197: 193 | AE197: =IF((Anzahl>AD197),AD197,Anzahl) -> 104 | AF197: 19.1 | AG197: =IF(C197<>"",OGW,AG196) -> 23 | AH197: =IF(C197<>"",UGW,AH196) -> 16 | AI197: 17.69207464 | AJ197: 20.05023306 | AK197: 16.51299543 | AL197: 21.22931226 | AM197: 15.33391622 | AN197: 22.40839147 | AO197: 18.87115385 | AQ197: =IF(AND(C197<>"",C197<UGW),1,0) -> 0 | AR197: =IF(AND(C197<>"",C197>OGW),1,0) -> 0 | BC197: 193 | BD197: =IF(C197="",NA(),SMALL(xi,BE197)) ->  | BF197: =IF(C197="","",NORMSDIST((BD197-fxds)/Standardabweichung)) ->  | BG197: =IF(C197="","",1-BF197) ->  | BH197: =IF(C197="","",SMALL(BG,BE197)) ->  | BI197: =IF(C197="","",(2*BE197-1)*(LN(BH197)+LN(BF197))) ->  | BJ197: =IF(C197="",NA(),NORMSINV((BE197-0.3)/(Anzahl+0.4))) -> 
AD198: 194 | AE198: 104 | AF198: 19.1 | AG198: 23 | AH198: 16 | AI198: =AI197 -> 17.69207464 | AJ198: 20.05023306 | AK198: 16.51299543 | AL198: 21.22931226 | AM198: 15.33391622 | AN198: 22.40839147 | AO198: 18.87115385 | AQ198: 0 | AR198: 0 | BC198: 194 | BE198: =IF(C198="","",1+BE197) -> 
AD199: 195 | AE199: 104 | AF199: 19.1 | AG199: 23 | AH199: 16 | AI199: 17.69207464 | AJ199: 20.05023306 | AK199: 16.51299543 | AL199: 21.22931226 | AM199: 15.33391622 | AN199: 22.40839147 | AO199: 18.87115385 | AQ199: 0 | AR199: 0 | BC199: 195
AD200: 196 | AE200: 104 | AF200: =IF(C200<>"",C200,AF199) -> 19.1 | AG200: 23 | AH200: 16 | AI200: 17.69207464 | AJ200: 20.05023306 | AK200: 16.51299543 | AL200: 21.22931226 | AM200: 15.33391622 | AN200: 22.40839147 | AO200: 18.87115385 | AQ200: 0 | AR200: 0 | BC200: 196
AD201: 197 | AE201: 104 | AF201: =IF(C201<>"",C201,AF200) -> 19.1 | AG201: 23 | AH201: 16 | AI201: 17.69207464 | AJ201: 20.05023306 | AK201: 16.51299543 | AL201: 21.22931226 | AM201: 15.33391622 | AN201: 22.40839147 | AO201: 18.87115385 | AQ201: 0 | AR201: 0 | BC201: 197
AD202: 198 | AE202: 104 | AF202: =IF(C202<>"",C202,AF201) -> 19.1 | AG202: 23 | AH202: 16 | AI202: 17.69207464 | AJ202: 20.05023306 | AK202: 16.51299543 | AL202: 21.22931226 | AM202: 15.33391622 | AN202: 22.40839147 | AO202: 18.87115385 | AQ202: 0 | AR202: 0 | BC202: 198
AD203: 199 | AE203: 104 | AF203: =IF(C203<>"",C203,AF202) -> 19.1 | AG203: 23 | AH203: 16 | AI203: 17.69207464 | AJ203: 20.05023306 | AK203: 16.51299543 | AL203: 21.22931226 | AM203: 15.33391622 | AN203: 22.40839147 | AO203: 18.87115385 | AQ203: 0 | AR203: 0 | BC203: 199
AD204: 200 | AE204: 104 | AF204: =IF(C204<>"",C204,AF203) -> 19.1 | AG204: 23 | AH204: 16 | AI204: 17.69207464 | AJ204: 20.05023306 | AK204: 16.51299543 | AL204: 21.22931226 | AM204: 15.33391622 | AN204: 22.40839147 | AO204: 18.87115385 | AQ204: 0 | AR204: 0 | BC204: 200
... 1 more rows

Sheet Info
B2: Sie benutzen eine Vorlage von www.sixsigmblackbelt.de | C2: You are using a template from www.sixsigmblackbelt.de
B4: Diese Version hat einige Einschränkungen | C4: This version has some limitations
B5: ="- einige Zellen können nicht verändert werden" -> - einige Zellen können nicht verändert werden | C5: ="- some cells cannot be changed" -> - some cells cannot be changed
B6: ="- Sie können die Berechnungen nicht einsehen oder verändern" -> - Sie können die Berechnungen nicht einsehen oder verändern | C6: ="- You can't see or change the calculations" -> - You can't see or change the calculations
B7: ="- Wasserzeichen auf dem Tabellenblatt" -> - Wasserzeichen auf dem Tabellenblatt | C7: ="- watermark on the spreadsheet" -> - watermark on the spreadsheet
B8: ="- Sie müssen die Datei mit der Endung .xlsm speichern, ansonsten gehen Funktionalitäten verloren" -> - Sie müssen die Datei mit der Endung .xlsm speichern, ansonsten gehen Funktionalitäten verloren | C8: ="- You have to save the file with the extension .xlsm, otherwise all functions will be lost" -> - You have to save the file with the extension .xlsm, otherwise all functions will be lost
B10: Benötigen Sie die Vorlage | C10: Do you need the template?
B11: ="- ohne die Einschränkungen" -> - ohne die Einschränkungen | C11: ="- without the limitations" -> - without the limitations
B12: ="- mit zusätzlichen Funktionen" -> - mit zusätzlichen Funktionen | C12: ="- with additional functions" -> - with additional functions
B13: ="- mit Ihrem Firmenlogo" -> - mit Ihrem Firmenlogo | C13: ="- with your company logo" -> - with your company logo
B14: ="- etc" -> - etc | C14: ="- etc" -> - etc
B16: wenden Sie sich bitte per Mail an | C16: please contact via e - mail
B17: https://www.sixsigmablackbelt.de
B18: roland.schnurr@sixsigmablackbelt.de

Sheet translation (hidden)
B1: 1 | C1: =VLOOKUP($B$1,$B$3:$AB$6,2,FALSE) -> Prozess- und Maschinenfähigkeit | D1: =VLOOKUP($B$1,$B$3:$AB$6,3,FALSE) -> Werte können geändert werden | E1: =VLOOKUP($B$1,$B$3:$AB$6,4,FALSE) -> Werte werden berechnet (Blatt Berechnung) | F1: =VLOOKUP($B$1,$B$3:$AB$6,5,FALSE) -> Artikel: | G1: =VLOOKUP($B$1,$B$3:$AB$6,6,FALSE) -> Nummer: | H1: =VLOOKUP($B$1,$B$3:$AB$6,7,FALSE) -> Zeichnung: | I1: =VLOOKUP($B$1,$B$3:$AB$6,8,FALSE) -> Prüfer: | J1: =VLOOKUP($B$1,$B$3:$AB$6,9,FALSE) -> Messmittel: | K1: =VLOOKUP($B$1,$B$3:$AB$6,10,FALSE) -> Datum: | L1: =VLOOKUP($B$1,$B$3:$AB$6,11,FALSE) -> Merkmal: | M1: =VLOOKUP($B$1,$B$3:$AB$6,12,FALSE) -> Maßeinheit: | N1: =VLOOKUP($B$1,$B$3:$AB$6,13,FALSE) -> Sollwert msoll = | O1: =VLOOKUP($B$1,$B$3:$AB$6,14,FALSE) -> Unterer Grenzwert UGW = | P1: =VLOOKUP($B$1,$B$3:$AB$6,15,FALSE) -> Oberer Grenzwert OGW = | Q1: =VLOOKUP($B$1,$B$3:$AB$6,16,FALSE) -> Anzahl Klassen Histogramm = | R1: =VLOOKUP($B$1,$B$3:$AB$6,17,FALSE) -> Cpk< | S1: =VLOOKUP($B$1,$B$3:$AB$6,18,FALSE) -> Cpk | T1: =VLOOKUP($B$1,$B$3:$AB$6,19,FALSE) -> Cpk> | U1: =VLOOKUP($B$1,$B$3:$AB$6,20,FALSE) -> dazwischen | V1: =VLOOKUP($B$1,$B$3:$AB$16,21,FALSE) -> Prozess nicht fähig | W1: =VLOOKUP($B$1,$B$3:$AB$6,22,FALSE) -> Prozess bedingt fähig | X1: =VLOOKUP($B$1,$B$3:$AB$6,23,FALSE) -> Prozess fähig | Y1: =VLOOKUP($B$1,$B$3:$AB$6,24,FALSE) -> Stichprobenumfang | Z1: =VLOOKUP($B$1,$B$3:$AB$6,25,FALSE) -> Mittelwert | AA1: =VLOOKUP($B$1,$B$3:$AB$6,26,FALSE) -> Standardabweichung | AB1: =VLOOKUP($B$1,$B$3:$AH$6,27,FALSE) -> Die Werte sind nach Andersson Darling Test | AC1: =VLOOKUP($B$1,$B$3:$AH$6,28,FALSE) -> normalverteilt | AD1: =VLOOKUP($B$1,$B$3:$AH$6,29,FALSE) -> nicht normalverteilt | AE1: =VLOOKUP($B$1,$B$3:$AH$6,30,FALSE) -> 0 | AF1: =VLOOKUP($B$1,$B$3:$AQ$6,31,FALSE) -> OGW | AG1: =VLOOKUP($B$1,$B$3:$AH$6,32,FALSE) -> UGW | AH1: =VLOOKUP($B$1,$B$3:$AH$6,33,FALSE) -> Stichprobe chronologisch | AI1: =VLOOKUP($B$1,$B$3:$AJ$6,34,FALSE) -> Histogramm | AJ1: =VLOOKUP($B$1,$B$3:$AK$6,35,FALSE) -> Wahrscheinlichkeitsnetz | AK1: =VLOOKUP($B$1,$B$3:$AK$6,35,FALSE) -> Wahrscheinlichkeitsnetz | AL1: =VLOOKUP($B$1,$B$3:$AO$6,37,FALSE) -> Cmu | AM1: =VLOOKUP($B$1,$B$3:$AP$6,38,FALSE) -> Cmo | AN1: =VLOOKUP($B$1,$B$3:$BB$6,39,FALSE) -> Cm | AO1: =VLOOKUP($B$1,$B$3:$BB$6,40,FALSE) -> Cmk | AP1: =VLOOKUP($B$1,$B$3:$BB$6,41,FALSE) -> Fähigkeits- kennwerte | AQ1: =VLOOKUP($B$1,$B$3:$BB$6,42,FALSE) -> Bewertung cmk => | AR1: =VLOOKUP($B$1,$B$3:$BB$6,43,FALSE) -> Median z | AS1: =VLOOKUP($B$1,$B$3:$BB$6,44,FALSE) -> Spannweite R | AT1: =VLOOKUP($B$1,$B$3:$BB$6,45,FALSE) -> Minimum | AU1: =VLOOKUP($B$1,$B$3:$BB$6,46,FALSE) -> Maximum | AV1: =VLOOKUP($B$1,$B$3:$BB$6,47,FALSE) -> Berechnete Leistung in ppm | AW1: =VLOOKUP($B$1,$B$3:$BB$6,48,FALSE) -> Über- schreitungs- anteil | AX1: =VLOOKUP($B$1,$B$3:$BB$6,49,FALSE) -> pUGW | AY1: =VLOOKUP($B$1,$B$3:$BB$6,50,FALSE) -> pOGW | AZ1: =VLOOKUP($B$1,$B$3:$BB$6,51,FALSE) -> p | BA1: =VLOOKUP($B$1,$B$3:$BB$6,52,FALSE) -> Beobachtete Leistung in ppm | BB1: =VLOOKUP($B$1,$B$3:$BB$6,53,FALSE) -> 0
A2: Sprache | B2: Beschreibung
B3: Zelle | C3: O2 | D3: O4 | E3: O5 | F3: N7 | G3: N8 | H3: N9 | I3: N10 | J3: N11 | K3: N12 | L3: N13 | M3: N14 | N3: N15 | O3: N16 | P3: N17 | Q3: N18 | R3: N19 | S3: N20 | T3: N21 | U3: O20 | V3: P19 | W3: P20 | X3: P21 | Y3: N23 | Z3: N24 | AA3: N25 | AB3: N26 | AC3: P26 | AD3: P26 | AF3: Diagramm | AG3: Diagramm | AH3: Diagramm | AI3: Diagramm | AJ3: Diagramm | AL3: O30 | AM3: O31 | AN3: O32 | AO3: O33 | AP3: N30 | AQ3: N34 | AR3: N36 | AS3: N37 | AT3: N38 | AU3: N39 | AV3: N41 | AW3: N42 | AX3: O42 | AY3: O43 | AZ3: O44 | BA3: N46
A4: deutsch | B4: 1 | C4: Prozess- und Maschinenfähigkeit | D4: Werte können geändert werden | E4: Werte werden berechnet (Blatt Berechnung) | F4: Artikel: | G4: Nummer: | H4: Zeichnung: | I4: Prüfer: | J4: Messmittel: | K4: Datum: | L4: Merkmal: | M4: Maßeinheit: | N4: Sollwert msoll = | O4: Unterer Grenzwert UGW = | P4: Oberer Grenzwert OGW = | Q4: Anzahl Klassen Histogramm = | R4: Cpk< | S4: Cpk | T4: Cpk> | U4: dazwischen | V4: Prozess nicht fähig | W4: Prozess bedingt fähig | X4: Prozess fähig | Y4: Stichprobenumfang | Z4: Mittelwert | AA4: Standardabweichung | AB4: Die Werte sind nach Andersson Darling Test | AC4: normalverteilt | AD4: nicht normalverteilt | AF4: OGW | AG4: UGW | AH4: Stichprobe chronologisch | AI4: Histogramm | AJ4: Wahrscheinlichkeitsnetz | AL4: Cmu | AM4: Cmo | AN4: Cm | AO4: Cmk | AP4: Fähigkeits- kennwerte | AQ4: ="Bewertung cmk =>" -> Bewertung cmk => | AR4: Median z | AS4: Spannweite R | AT4: Minimum | AU4: Maximum | AV4: Berechnete Leistung in ppm | AW4: Über- schreitungs- anteil | AX4: pUGW | AY4: pOGW | AZ4: p | BA4: Beobachtete Leistung in ppm
A5: english | B5: 2 | C5: process and machine capability | D5: value could be changed | E5: value is calculated | F5: part: | G5: part number: | H5: drawing: | I5: inspector: | J5: measuring device: | K5: date: | L5: attribute: | M5: measuring unit: | N5: nominal value = | O5: lower spec. limit LSL = | P5: upper specifications limit LSL = | Q5: number of classes histogram = | R5: Cpk< | S5: Cpk | T5: Cpk> | U5: between | V5: process not capable | W5: process limited capable | X5: process capable | Y5: sample size | Z5: mid | AA5: standard deviation s | AB5: values are according Andersson Darling test | AC5: normal distributed | AD5: not normal distributed | AF5: USL | AG5: LSL | AH5: random sample chronological | AI5: histogram | AJ5: probability plot | AL5: Cpkl | AM5: Cpku | AN5: Cp | AO5: Cpk | AP5: probability values | AQ5: evaluation Cmk => | AR5: median | AS5: range | AT5: minimum | AU5: maximum | AV5: calculated performance | AW5: exceedance | AX5: pLSL | AY5: pUSL | AZ5: p | BA5: observed performance in ppm
A6: Italiano | B6: 3 | C6: Capacità di processo e macchina | D6: Valore modificabile | E6: Valore calcolato | F6: Articolo: | G6: Codice: | H6: Disegno | I6: Ispettore | J6: Strumento | K6: Data | L6: Attributo: | M6: Unità di misura | N6: Valore nominale = | O6: Limite inferiore di specifica LSM | P6: Limite superiore di specifica LSS | Q6: Numero di classi dell'istogramma | R6: Cpk< | S6: Cpk | T6: Cpk> | U6: tra | V6: Processo non capace | W6: Processo capace in modo limitatato | X6: Processo capace | Y6: Dimensione del campione | Z6: media | AA6: Deviazione standard s | AB6: Valori in accorso al test Andersson Darling | AC6: Distribuzione normale | AD6: Distribuzione non normale | AF6: USL | AG6: LSL | AH6: Campione casuale cronologico | AI6: Istogramma | AJ6: Grafico delle probabilità | AL6: Cpkl | AM6: Cpku | AN6: Cp | AO6: Cpk | AP6: Valori di probabilità | AQ6: Vautazione Cmk => | AR6: Media | AS6: Range | AT6: Minimo | AU6: Massimo | AV6: Performance calcolata | AW6: Eccedenza | AX6: pLSL | AY6: pUSL | AZ6: p | BA6: Prestazione osservata in ppm
